Workbook

Sheet Vstup
D1: Hypotéční kalkulátor - www.levnejsihypoteka.cz
C3: Zadejte parametry hypotéky:
C5: Částka hypotéky | D5: Úroková sazba | E5: Doba splácení (let) | F5: První splátka
C6: 330000000 | D6: 0.06 | E6: 20 | F6: 2022-01-01 | H6: =-PMT(D6/12,E6*12,C6) -> 2364222.493
E14: Měsíční splátka
E15: 2364222.493
C21: Pro další informace o zadané hypotéce přejděte na list Výstup

Sheet Výstup
F1: Hypotéční kalkulátor - www.levnejsihypoteka.cz
C2: Parametry hypotéky
B3: Částka hypotéky | D3: =Vstup!C6 -> 330000000 | F3: První splátka | G3: =Sheet3!D3&"/" -> 1/ | H3: =Sheet3!C3 -> 2022
B4: Úroková sazba | D4: =Vstup!D6 -> 0.06 | F4: Poslední splátka | G4: =IF(Sheet3!D3>1,Sheet3!D3-1,12)&"/" -> 12/ | H4: =Sheet3!D2 -> 2041
B5: Doba splácení v letech | D5: =Vstup!E6 -> 20 | F5: Počet splátek | G5: =12*Vstup!E6 -> 240
F6: Výše splátky | G6: =Vstup!E15 -> 2364222.493
D15: Roční přehled | K15: Detailní měsíční přehled
B16: Rok | C16: Součet splátek | D16: Součet úroků | E16: Součet úmorů | F16: Dlužný zůstatek | H16: Rok | I16: Měsíc | J16: Dlužný zůstatek před splátkou | K16: Úmor | L16: Úrok | M16: Dlužný zůstatek po splátce
B17: =Sheet3!C3 -> 2022 | C17: =SUMIF(Sheet3!C5:C436,B17,Sheet3!D5:D436) -> 28370669.92 | D17: =SUMIF(Sheet3!C5:C436,B17,Sheet3!G5:G436) -> 19560333.81 | E17: =SUMIF(Sheet3!C5:C436,B17,Sheet3!F5:F436) -> 8810336.11 | F17: =Sheet3!B1-E17 -> 321189663.9 | H17: =Sheet3!C5 -> 2022 | I17: =Sheet3!B5 -> 1 | J17: =Sheet3!E5 -> 330000000 | K17: =Sheet3!F5 -> 714222.493 | L17: =Sheet3!G5 -> 1650000 | M17: =Sheet3!H5 -> 329285777.5 | N17: =Sheet3!A5 -> 1
B18: =IF(B17+1<=Sheet3!$C$2,B17+1,-9.99999999999999E+25) -> 2023 | C18: =SUMIF(Sheet3!C6:C437,B18,Sheet3!D6:D437) -> 28370669.92 | D18: =SUMIF(Sheet3!C6:C437,B18,Sheet3!G6:G437) -> 19016931.55 | E18: =SUMIF(Sheet3!C6:C437,B18,Sheet3!F6:F437) -> 9353738.363 | F18: =F17-E18 -> 311835925.5 | H18: =Sheet3!C6 -> 2022 | I18: =Sheet3!B6 -> 2 | J18: =Sheet3!E6 -> 329285777.5 | K18: =Sheet3!F6 -> 717793.6054 | L18: =Sheet3!G6 -> 1646428.888 | M18: =Sheet3!H6 -> 328567983.9 | N18: =Sheet3!A6 -> 2
B19: =IF(B18+1<=Sheet3!$C$2,B18+1,-9.99999999999999E+25) -> 2024 | C19: =SUMIF(Sheet3!C7:C438,B19,Sheet3!D7:D438) -> 28370669.92 | D19: =SUMIF(Sheet3!C7:C438,B19,Sheet3!G7:G438) -> 18440013.44 | E19: =SUMIF(Sheet3!C7:C438,B19,Sheet3!F7:F438) -> 9930656.478 | F19: =F18-E19 -> 301905269 | H19: =Sheet3!C7 -> 2022 | I19: =Sheet3!B7 -> 3 | J19: =Sheet3!E7 -> 328567983.9 | K19: =Sheet3!F7 -> 721382.5735 | L19: =Sheet3!G7 -> 1642839.92 | M19: =Sheet3!H7 -> 327846601.3 | N19: =Sheet3!A7 -> 2
B20: =IF(B19+1<=Sheet3!$C$2,B19+1,-9.99999999999999E+25) -> 2025 | C20: =SUMIF(Sheet3!C8:C439,B20,Sheet3!D8:D439) -> 28370669.92 | D20: =SUMIF(Sheet3!C8:C439,B20,Sheet3!G8:G439) -> 17827512.28 | E20: =SUMIF(Sheet3!C8:C439,B20,Sheet3!F8:F439) -> 10543157.64 | F20: =F19-E20 -> 291362111.4 | H20: =Sheet3!C8 -> 2022 | I20: =Sheet3!B8 -> 4 | J20: =Sheet3!E8 -> 327846601.3 | K20: =Sheet3!F8 -> 724989.4863 | L20: =Sheet3!G8 -> 1639233.007 | M20: =Sheet3!H8 -> 327121611.8 | N20: =Sheet3!A8 -> 2
B21: =IF(B20+1<=Sheet3!$C$2,B20+1,-9.99999999999999E+25) -> 2026 | C21: =SUMIF(Sheet3!C9:C440,B21,Sheet3!D9:D440) -> 28370669.92 | D21: =SUMIF(Sheet3!C9:C440,B21,Sheet3!G9:G440) -> 17177233.38 | E21: =SUMIF(Sheet3!C9:C440,B21,Sheet3!F9:F440) -> 11193436.53 | F21: =F20-E21 -> 280168674.9 | H21: =Sheet3!C9 -> 2022 | I21: =Sheet3!B9 -> 5 | J21: =Sheet3!E9 -> 327121611.8 | K21: =Sheet3!F9 -> 728614.4338 | L21: =Sheet3!G9 -> 1635608.059 | M21: =Sheet3!H9 -> 326392997.4 | N21: =Sheet3!A9 -> 2
B22: =IF(B21+1<=Sheet3!$C$2,B21+1,-9.99999999999999E+25) -> 2027 | C22: =SUMIF(Sheet3!C10:C441,B22,Sheet3!D10:D441) -> 28370669.92 | D22: =SUMIF(Sheet3!C10:C441,B22,Sheet3!G10:G441) -> 16486846.71 | E22: =SUMIF(Sheet3!C10:C441,B22,Sheet3!F10:F441) -> 11883823.21 | F22: 268284851.7 | H22: =Sheet3!C10 -> 2022 | I22: =Sheet3!B10 -> 6 | J22: =Sheet3!E10 -> 326392997.4 | K22: =Sheet3!F10 -> 732257.5059 | L22: =Sheet3!G10 -> 1631964.987 | M22: =Sheet3!H10 -> 325660739.9 | N22: =Sheet3!A10 -> 2
B23: =IF(B22+1<=Sheet3!$C$2,B22+1,-9.99999999999999E+25) -> 2028 | C23: =SUMIF(Sheet3!C11:C442,B23,Sheet3!D11:D442) -> 28370669.92 | D23: =SUMIF(Sheet3!C11:C442,B23,Sheet3!G11:G442) -> 15753878.5 | E23: =SUMIF(Sheet3!C11:C442,B23,Sheet3!F11:F442) -> 12616791.42 | F23: 255668060.2 | H23: =Sheet3!C11 -> 2022 | I23: =Sheet3!B11 -> 7 | J23: =Sheet3!E11 -> 325660739.9 | K23: =Sheet3!F11 -> 735918.7935 | L23: =Sheet3!G11 -> 1628303.7 | M23: =Sheet3!H11 -> 324924821.1 | N23: =Sheet3!A11 -> 2
B24: =IF(B23+1<=Sheet3!$C$2,B23+1,-9.99999999999999E+25) -> 2029 | C24: =SUMIF(Sheet3!C12:C443,B24,Sheet3!D12:D443) -> 28370669.92 | D24: =SUMIF(Sheet3!C12:C443,B24,Sheet3!G12:G443) -> 14975702.41 | E24: =SUMIF(Sheet3!C12:C443,B24,Sheet3!F12:F443) -> 13394967.51 | F24: 242273092.7 | H24: =Sheet3!C12 -> 2022 | I24: =Sheet3!B12 -> 8 | J24: =Sheet3!E12 -> 324924821.1 | K24: =Sheet3!F12 -> 739598.3874 | L24: =Sheet3!G12 -> 1624624.106 | M24: =Sheet3!H12 -> 324185222.7 | N24: =Sheet3!A12 -> 2
B25: =IF(B24+1<=Sheet3!$C$2,B24+1,-9.99999999999999E+25) -> 2030 | C25: =SUMIF(Sheet3!C13:C444,B25,Sheet3!D13:D444) -> 28370669.92 | D25: =SUMIF(Sheet3!C13:C444,B25,Sheet3!G13:G444) -> 14149530.12 | E25: =SUMIF(Sheet3!C13:C444,B25,Sheet3!F13:F444) -> 14221139.79 | F25: 228051953 | H25: =Sheet3!C13 -> 2022 | I25: =Sheet3!B13 -> 9 | J25: =Sheet3!E13 -> 324185222.7 | K25: =Sheet3!F13 -> 743296.3794 | L25: =Sheet3!G13 -> 1620926.114 | M25: =Sheet3!H13 -> 323441926.3 | N25: =Sheet3!A13 -> 2
B26: =IF(B25+1<=Sheet3!$C$2,B25+1,-9.99999999999999E+25) -> 2031 | C26: =SUMIF(Sheet3!C14:C445,B26,Sheet3!D14:D445) -> 28370669.92 | D26: =SUMIF(Sheet3!C14:C445,B26,Sheet3!G14:G445) -> 13272401.34 | E26: =SUMIF(Sheet3!C14:C445,B26,Sheet3!F14:F445) -> 15098268.58 | F26: 212953684.4 | H26: =Sheet3!C14 -> 2022 | I26: =Sheet3!B14 -> 10 | J26: =Sheet3!E14 -> 323441926.3 | K26: =Sheet3!F14 -> 747012.8613 | L26: =Sheet3!G14 -> 1617209.632 | M26: =Sheet3!H14 -> 322694913.5 | N26: =Sheet3!A14 -> 2
B27: =IF(B26+1<=Sheet3!$C$2,B26+1,-9.99999999999999E+25) -> 2032 | C27: =SUMIF(Sheet3!C15:C446,B27,Sheet3!D15:D446) -> 28370669.92 | D27: =SUMIF(Sheet3!C15:C446,B27,Sheet3!G15:G446) -> 12341173.17 | E27: =SUMIF(Sheet3!C15:C446,B27,Sheet3!F15:F446) -> 16029496.74 | F27: 196924187.6 | H27: =Sheet3!C15 -> 2022 | I27: =Sheet3!B15 -> 11 | J27: =Sheet3!E15 -> 322694913.5 | K27: =Sheet3!F15 -> 750747.9256 | L27: =Sheet3!G15 -> 1613474.567 | M27: =Sheet3!H15 -> 321944165.6 | N27: =Sheet3!A15 -> 2
B28: =IF(B27+1<=Sheet3!$C$2,B27+1,-9.99999999999999E+25) -> 2033 | C28: =SUMIF(Sheet3!C16:C447,B28,Sheet3!D16:D447) -> 28370669.92 | D28: =SUMIF(Sheet3!C16:C447,B28,Sheet3!G16:G447) -> 11352508.89 | E28: =SUMIF(Sheet3!C16:C447,B28,Sheet3!F16:F447) -> 17018161.03 | F28: 179906026.6 | H28: =Sheet3!C16 -> 2022 | I28: =Sheet3!B16 -> 12 | J28: =Sheet3!E16 -> 321944165.6 | K28: =Sheet3!F16 -> 754501.6652 | L28: =Sheet3!G16 -> 1609720.828 | M28: =Sheet3!H16 -> 321189663.9 | N28: =Sheet3!A16 -> 2
B29: =IF(B28+1<=Sheet3!$C$2,B28+1,-9.99999999999999E+25) -> 2034 | C29: =SUMIF(Sheet3!C17:C448,B29,Sheet3!D17:D448) -> 28370669.92 | D29: =SUMIF(Sheet3!C17:C448,B29,Sheet3!G17:G448) -> 10302865.95 | E29: =SUMIF(Sheet3!C17:C448,B29,Sheet3!F17:F448) -> 18067803.96 | F29: 161838222.6 | H29: =Sheet3!C17 -> 2023 | I29: =Sheet3!B17 -> 1 | J29: =Sheet3!E17 -> 321189663.9 | K29: =Sheet3!F17 -> 758274.1735 | L29: =Sheet3!G17 -> 1605948.319 | M29: =Sheet3!H17 -> 320431389.7 | N29: =Sheet3!A17 -> 2
B30: =IF(B29+1<=Sheet3!$C$2,B29+1,-9.99999999999999E+25) -> 2035 | C30: =SUMIF(Sheet3!C18:C449,B30,Sheet3!D18:D449) -> 28370669.92 | D30: =SUMIF(Sheet3!C18:C449,B30,Sheet3!G18:G449) -> 9188483.339 | E30: =SUMIF(Sheet3!C18:C449,B30,Sheet3!F18:F449) -> 19182186.58 | F30: 142656036.1 | H30: =Sheet3!C18 -> 2023 | I30: =Sheet3!B18 -> 2 | J30: =Sheet3!E18 -> 320431389.7 | K30: =Sheet3!F18 -> 762065.5444 | L30: =Sheet3!G18 -> 1602156.949 | M30: =Sheet3!H18 -> 319669324.2 | N30: =Sheet3!A18 -> 2
B31: =IF(B30+1<=Sheet3!$C$2,B30+1,-9.99999999999999E+25) -> 2036 | C31: =SUMIF(Sheet3!C19:C450,B31,Sheet3!D19:D450) -> 28370669.92 | D31: =SUMIF(Sheet3!C19:C450,B31,Sheet3!G19:G450) -> 8005368.044 | E31: =SUMIF(Sheet3!C19:C450,B31,Sheet3!F19:F450) -> 20365301.87 | F31: 122290734.2 | H31: =Sheet3!C19 -> 2023 | I31: =Sheet3!B19 -> 3 | J31: =Sheet3!E19 -> 319669324.2 | K31: =Sheet3!F19 -> 765875.8721 | L31: =Sheet3!G19 -> 1598346.621 | M31: =Sheet3!H19 -> 318903448.3 | N31: =Sheet3!A19 -> 2
B32: =IF(B31+1<=Sheet3!$C$2,B31+1,-9.99999999999999E+25) -> 2037 | C32: =SUMIF(Sheet3!C20:C451,B32,Sheet3!D20:D451) -> 28370669.92 | D32: =SUMIF(Sheet3!C20:C451,B32,Sheet3!G20:G451) -> 6749280.786 | E32: =SUMIF(Sheet3!C20:C451,B32,Sheet3!F20:F451) -> 21621389.13 | F32: 100669345.1 | H32: =Sheet3!C20 -> 2023 | I32: =Sheet3!B20 -> 4 | J32: =Sheet3!E20 -> 318903448.3 | K32: =Sheet3!F20 -> 769705.2515 | L32: =Sheet3!G20 -> 1594517.241 | M32: =Sheet3!H20 -> 318133743 | N32: =Sheet3!A20 -> 2
B33: =IF(B32+1<=Sheet3!$C$2,B32+1,-9.99999999999999E+25) -> 2038 | C33: =SUMIF(Sheet3!C21:C452,B33,Sheet3!D21:D452) -> 28370669.92 | D33: =SUMIF(Sheet3!C21:C452,B33,Sheet3!G21:G452) -> 5415720.815 | E33: =SUMIF(Sheet3!C21:C452,B33,Sheet3!F21:F452) -> 22954949.1 | F33: 77714395.96 | H33: =Sheet3!C21 -> 2023 | I33: =Sheet3!B21 -> 5 | J33: =Sheet3!E21 -> 318133743 | K33: =Sheet3!F21 -> 773553.7777 | L33: =Sheet3!G21 -> 1590668.715 | M33: =Sheet3!H21 -> 317360189.3 | N33: =Sheet3!A21 -> 2
B34: =IF(B33+1<=Sheet3!$C$2,B33+1,-9.99999999999999E+25) -> 2039 | C34: =SUMIF(Sheet3!C22:C453,B34,Sheet3!D22:D453) -> 28370669.92 | D34: =SUMIF(Sheet3!C22:C453,B34,Sheet3!G22:G453) -> 3999909.783 | E34: =SUMIF(Sheet3!C22:C453,B34,Sheet3!F22:F453) -> 24370760.13 | F34: 53343635.83 | H34: =Sheet3!C22 -> 2023 | I34: =Sheet3!B22 -> 6 | J34: =Sheet3!E22 -> 317360189.3 | K34: =Sheet3!F22 -> 777421.5466 | L34: =Sheet3!G22 -> 1586800.946 | M34: =Sheet3!H22 -> 316582767.7 | N34: =Sheet3!A22 -> 2
B35: =IF(B34+1<=Sheet3!$C$2,B34+1,-9.99999999999999E+25) -> 2040 | C35: =SUMIF(Sheet3!C23:C454,B35,Sheet3!D23:D454) -> 28370669.92 | D35: =SUMIF(Sheet3!C23:C454,B35,Sheet3!G23:G454) -> 2496774.625 | E35: =SUMIF(Sheet3!C23:C454,B35,Sheet3!F23:F454) -> 25873895.29 | F35: 27469740.54 | H35: =Sheet3!C23 -> 2023 | I35: =Sheet3!B23 -> 7 | J35: =Sheet3!E23 -> 316582767.7 | K35: =Sheet3!F23 -> 781308.6544 | L35: =Sheet3!G23 -> 1582913.839 | M35: =Sheet3!H23 -> 315801459.1 | N35: =Sheet3!A23 -> 2
B36: =IF(B35+1<=Sheet3!$C$2,B35+1,-9.99999999999999E+25) -> 2041 | C36: =SUMIF(Sheet3!C24:C455,B36,Sheet3!D24:D455) -> 28370669.92 | D36: =SUMIF(Sheet3!C24:C455,B36,Sheet3!G24:G455) -> 900929.379 | E36: =SUMIF(Sheet3!C24:C455,B36,Sheet3!F24:F455) -> 27469740.54 | F36: -5.215406418e-07 | H36: =Sheet3!C24 -> 2023 | I36: =Sheet3!B24 -> 8 | J36: =Sheet3!E24 -> 315801459.1 | K36: =Sheet3!F24 -> 785215.1976 | L36: =Sheet3!G24 -> 1579007.295 | M36: =Sheet3!H24 -> 315016243.9 | N36: =Sheet3!A24 -> 2
B37: =IF(B36+1<=Sheet3!$C$2,B36+1,-9.99999999999999E+25) -> 2042 | C37: =SUMIF(Sheet3!C25:C456,B37,Sheet3!D25:D456) -> 0 | D37: =SUMIF(Sheet3!C25:C456,B37,Sheet3!G25:G456) -> -5.859077731e-08 | E37: =SUMIF(Sheet3!C25:C456,B37,Sheet3!F25:F456) -> 5.859077731e-08 | F37: -5.801314191e-07 | H37: =Sheet3!C25 -> 2023 | I37: =Sheet3!B25 -> 9 | J37: =Sheet3!E25 -> 315016243.9 | K37: =Sheet3!F25 -> 789141.2736 | L37: =Sheet3!G25 -> 1575081.219 | M37: =Sheet3!H25 -> 314227102.6 | N37: =Sheet3!A25 -> 2
B38: =IF(B37+1<=Sheet3!$C$2,B37+1,-9.99999999999999E+25) -> -1e+26 | C38: =SUMIF(Sheet3!C26:C457,B38,Sheet3!D26:D457) -> 0 | D38: =SUMIF(Sheet3!C26:C457,B38,Sheet3!G26:G457) -> 0 | E38: =SUMIF(Sheet3!C26:C457,B38,Sheet3!F26:F457) -> 0 | F38: -5.801314191e-07 | H38: =Sheet3!C26 -> 2023 | I38: =Sheet3!B26 -> 10 | J38: =Sheet3!E26 -> 314227102.6 | K38: =Sheet3!F26 -> 793086.98 | L38: =Sheet3!G26 -> 1571135.513 | M38: =Sheet3!H26 -> 313434015.6 | N38: =Sheet3!A26 -> 2
B39: =IF(B38+1<=Sheet3!$C$2,B38+1,-9.99999999999999E+25) -> -1e+26 | C39: =SUMIF(Sheet3!C27:C458,B39,Sheet3!D27:D458) -> 0 | D39: =SUMIF(Sheet3!C27:C458,B39,Sheet3!G27:G458) -> 0 | E39: =SUMIF(Sheet3!C27:C458,B39,Sheet3!F27:F458) -> 0 | F39: -5.801314191e-07 | H39: =Sheet3!C27 -> 2023 | I39: =Sheet3!B27 -> 11 | J39: =Sheet3!E27 -> 313434015.6 | K39: =Sheet3!F27 -> 797052.4149 | L39: =Sheet3!G27 -> 1567170.078 | M39: =Sheet3!H27 -> 312636963.2 | N39: =Sheet3!A27 -> 2
B40: =IF(B39+1<=Sheet3!$C$2,B39+1,-9.99999999999999E+25) -> -1e+26 | C40: =SUMIF(Sheet3!C28:C459,B40,Sheet3!D28:D459) -> 0 | D40: =SUMIF(Sheet3!C28:C459,B40,Sheet3!G28:G459) -> 0 | E40: =SUMIF(Sheet3!C28:C459,B40,Sheet3!F28:F459) -> 0 | F40: -5.801314191e-07 | H40: =Sheet3!C28 -> 2023 | I40: =Sheet3!B28 -> 12 | J40: =Sheet3!E28 -> 312636963.2 | K40: =Sheet3!F28 -> 801037.677 | L40: =Sheet3!G28 -> 1563184.816 | M40: =Sheet3!H28 -> 311835925.5 | N40: =Sheet3!A28 -> 2
B41: =IF(B40+1<=Sheet3!$C$2,B40+1,-9.99999999999999E+25) -> -1e+26 | C41: =SUMIF(Sheet3!C29:C460,B41,Sheet3!D29:D460) -> 0 | D41: =SUMIF(Sheet3!C29:C460,B41,Sheet3!G29:G460) -> 0 | E41: =SUMIF(Sheet3!C29:C460,B41,Sheet3!F29:F460) -> 0 | F41: -5.801314191e-07 | H41: =Sheet3!C29 -> 2024 | I41: =Sheet3!B29 -> 1 | J41: =Sheet3!E29 -> 311835925.5 | K41: =Sheet3!F29 -> 805042.8653 | L41: =Sheet3!G29 -> 1559179.628 | M41: =Sheet3!H29 -> 311030882.7 | N41: =Sheet3!A29 -> 2
B42: =IF(B41+1<=Sheet3!$C$2,B41+1,-9.99999999999999E+25) -> -1e+26 | C42: =SUMIF(Sheet3!C30:C461,B42,Sheet3!D30:D461) -> 0 | D42: =SUMIF(Sheet3!C30:C461,B42,Sheet3!G30:G461) -> 0 | E42: =SUMIF(Sheet3!C30:C461,B42,Sheet3!F30:F461) -> 0 | F42: -5.801314191e-07 | H42: =Sheet3!C30 -> 2024 | I42: =Sheet3!B30 -> 2 | J42: =Sheet3!E30 -> 311030882.7 | K42: =Sheet3!F30 -> 809068.0797 | L42: =Sheet3!G30 -> 1555154.413 | M42: =Sheet3!H30 -> 310221814.6 | N42: =Sheet3!A30 -> 2
B43: =IF(B42+1<=Sheet3!$C$2,B42+1,-9.99999999999999E+25) -> -1e+26 | C43: =SUMIF(Sheet3!C31:C462,B43,Sheet3!D31:D462) -> 0 | D43: =SUMIF(Sheet3!C31:C462,B43,Sheet3!G31:G462) -> 0 | E43: =SUMIF(Sheet3!C31:C462,B43,Sheet3!F31:F462) -> 0 | F43: -5.801314191e-07 | H43: =Sheet3!C31 -> 2024 | I43: =Sheet3!B31 -> 3 | J43: =Sheet3!E31 -> 310221814.6 | K43: =Sheet3!F31 -> 813113.4201 | L43: =Sheet3!G31 -> 1551109.073 | M43: =Sheet3!H31 -> 309408701.2 | N43: =Sheet3!A31 -> 2
B44: =IF(B43+1<=Sheet3!$C$2,B43+1,-9.99999999999999E+25) -> -1e+26 | C44: =SUMIF(Sheet3!C32:C463,B44,Sheet3!D32:D463) -> 0 | D44: =SUMIF(Sheet3!C32:C463,B44,Sheet3!G32:G463) -> 0 | E44: =SUMIF(Sheet3!C32:C463,B44,Sheet3!F32:F463) -> 0 | F44: -5.801314191e-07 | H44: =Sheet3!C32 -> 2024 | I44: =Sheet3!B32 -> 4 | J44: =Sheet3!E32 -> 309408701.2 | K44: =Sheet3!F32 -> 817178.9872 | L44: =Sheet3!G32 -> 1547043.506 | M44: =Sheet3!H32 -> 308591522.2 | N44: =Sheet3!A32 -> 2
B45: =IF(B44+1<=Sheet3!$C$2,B44+1,-9.99999999999999E+25) -> -1e+26 | C45: =SUMIF(Sheet3!C33:C464,B45,Sheet3!D33:D464) -> 0 | D45: =SUMIF(Sheet3!C33:C464,B45,Sheet3!G33:G464) -> 0 | E45: =SUMIF(Sheet3!C33:C464,B45,Sheet3!F33:F464) -> 0 | F45: -5.801314191e-07 | H45: =Sheet3!C33 -> 2024 | I45: =Sheet3!B33 -> 5 | J45: =Sheet3!E33 -> 308591522.2 | K45: =Sheet3!F33 -> 821264.8821 | L45: =Sheet3!G33 -> 1542957.611 | M45: =Sheet3!H33 -> 307770257.3 | N45: =Sheet3!A33 -> 2
B46: =IF(B45+1<=Sheet3!$C$2,B45+1,-9.99999999999999E+25) -> -1e+26 | C46: =SUMIF(Sheet3!C34:C465,B46,Sheet3!D34:D465) -> 0 | D46: =SUMIF(Sheet3!C34:C465,B46,Sheet3!G34:G465) -> 0 | E46: =SUMIF(Sheet3!C34:C465,B46,Sheet3!F34:F465) -> 0 | F46: -5.801314191e-07 | H46: =Sheet3!C34 -> 2024 | I46: =Sheet3!B34 -> 6 | J46: =Sheet3!E34 -> 307770257.3 | K46: =Sheet3!F34 -> 825371.2065 | L46: =Sheet3!G34 -> 1538851.286 | M46: =Sheet3!H34 -> 306944886.1 | N46: =Sheet3!A34 -> 2
B47: =IF(B46+1<=Sheet3!$C$2,B46+1,-9.99999999999999E+25) -> -1e+26 | C47: =SUMIF(Sheet3!C35:C466,B47,Sheet3!D35:D466) -> 0 | D47: =SUMIF(Sheet3!C35:C466,B47,Sheet3!G35:G466) -> 0 | E47: =SUMIF(Sheet3!C35:C466,B47,Sheet3!F35:F466) -> 0 | F47: -5.801314191e-07 | H47: =Sheet3!C35 -> 2024 | I47: =Sheet3!B35 -> 7 | J47: =Sheet3!E35 -> 306944886.1 | K47: =Sheet3!F35 -> 829498.0626 | L47: =Sheet3!G35 -> 1534724.43 | M47: =Sheet3!H35 -> 306115388 | N47: =Sheet3!A35 -> 2
B48: =IF(B47+1<=Sheet3!$C$2,B47+1,-9.99999999999999E+25) -> -1e+26 | C48: =SUMIF(Sheet3!C36:C467,B48,Sheet3!D36:D467) -> 0 | D48: =SUMIF(Sheet3!C36:C467,B48,Sheet3!G36:G467) -> 0 | E48: =SUMIF(Sheet3!C36:C467,B48,Sheet3!F36:F467) -> 0 | F48: -5.801314191e-07 | H48: =Sheet3!C36 -> 2024 | I48: =Sheet3!B36 -> 8 | J48: =Sheet3!E36 -> 306115388 | K48: =Sheet3!F36 -> 833645.5529 | L48: =Sheet3!G36 -> 1530576.94 | M48: =Sheet3!H36 -> 305281742.5 | N48: =Sheet3!A36 -> 2
B49: =IF(B48+1<=Sheet3!$C$2,B48+1,-9.99999999999999E+25) -> -1e+26 | C49: =SUMIF(Sheet3!C37:C468,B49,Sheet3!D37:D468) -> 0 | D49: =SUMIF(Sheet3!C37:C468,B49,Sheet3!G37:G468) -> 0 | E49: =SUMIF(Sheet3!C37:C468,B49,Sheet3!F37:F468) -> 0 | F49: -5.801314191e-07 | H49: =Sheet3!C37 -> 2024 | I49: =Sheet3!B37 -> 9 | J49: =Sheet3!E37 -> 305281742.5 | K49: =Sheet3!F37 -> 837813.7806 | L49: =Sheet3!G37 -> 1526408.712 | M49: =Sheet3!H37 -> 304443928.7 | N49: =Sheet3!A37 -> 2
B50: =IF(B49+1<=Sheet3!$C$2,B49+1,-9.99999999999999E+25) -> -1e+26 | C50: =SUMIF(Sheet3!C38:C469,B50,Sheet3!D38:D469) -> 0 | D50: =SUMIF(Sheet3!C38:C469,B50,Sheet3!G38:G469) -> 0 | E50: =SUMIF(Sheet3!C38:C469,B50,Sheet3!F38:F469) -> 0 | F50: -5.801314191e-07 | H50: =Sheet3!C38 -> 2024 | I50: =Sheet3!B38 -> 10 | J50: =Sheet3!E38 -> 304443928.7 | K50: =Sheet3!F38 -> 842002.8495 | L50: =Sheet3!G38 -> 1522219.643 | M50: =Sheet3!H38 -> 303601925.8 | N50: =Sheet3!A38 -> 2
B51: =IF(B50+1<=Sheet3!$C$2,B50+1,-9.99999999999999E+25) -> -1e+26 | C51: =SUMIF(Sheet3!C39:C470,B51,Sheet3!D39:D470) -> 0 | D51: =SUMIF(Sheet3!C39:C470,B51,Sheet3!G39:G470) -> 0 | E51: =SUMIF(Sheet3!C39:C470,B51,Sheet3!F39:F470) -> 0 | F51: -5.801314191e-07 | H51: =Sheet3!C39 -> 2024 | I51: =Sheet3!B39 -> 11 | J51: =Sheet3!E39 -> 303601925.8 | K51: =Sheet3!F39 -> 846212.8638 | L51: =Sheet3!G39 -> 1518009.629 | M51: =Sheet3!H39 -> 302755713 | N51: =Sheet3!A39 -> 2
B52: =IF(B51+1<=Sheet3!$C$2,B51+1,-9.99999999999999E+25) -> -1e+26 | C52: =SUMIF(Sheet3!C40:C471,B52,Sheet3!D40:D471) -> 0 | D52: =SUMIF(Sheet3!C40:C471,B52,Sheet3!G40:G471) -> 0 | E52: =SUMIF(Sheet3!C40:C471,B52,Sheet3!F40:F471) -> 0 | F52: -5.801314191e-07 | H52: =Sheet3!C40 -> 2024 | I52: =Sheet3!B40 -> 12 | J52: =Sheet3!E40 -> 302755713 | K52: =Sheet3!F40 -> 850443.9281 | L52: =Sheet3!G40 -> 1513778.565 | M52: =Sheet3!H40 -> 301905269 | N52: =Sheet3!A40 -> 2
B53: =IF(B52+1<=Sheet3!$C$2,B52+1,-9.99999999999999E+25) -> -1e+26 | C53: =SUMIF(Sheet3!C41:C472,B53,Sheet3!D41:D472) -> 0 | D53: =SUMIF(Sheet3!C41:C472,B53,Sheet3!G41:G472) -> 0 | E53: =SUMIF(Sheet3!C41:C472,B53,Sheet3!F41:F472) -> 0 | F53: -5.801314191e-07 | H53: =Sheet3!C41 -> 2025 | I53: =Sheet3!B41 -> 1 | J53: =Sheet3!E41 -> 301905269 | K53: =Sheet3!F41 -> 854696.1477 | L53: =Sheet3!G41 -> 1509526.345 | M53: =Sheet3!H41 -> 301050572.9 | N53: =Sheet3!A41 -> 2
B54: =IF(B53+1<=Sheet3!$C$2,B53+1,-9.99999999999999E+25) -> -1e+26 | C54: =SUMIF(Sheet3!C42:C473,B54,Sheet3!D42:D473) -> 0 | D54: =SUMIF(Sheet3!C42:C473,B54,Sheet3!G42:G473) -> 0 | E54: =SUMIF(Sheet3!C42:C473,B54,Sheet3!F42:F473) -> 0 | F54: -5.801314191e-07 | H54: =Sheet3!C42 -> 2025 | I54: =Sheet3!B42 -> 2 | J54: =Sheet3!E42 -> 301050572.9 | K54: =Sheet3!F42 -> 858969.6285 | L54: =Sheet3!G42 -> 1505252.865 | M54: =Sheet3!H42 -> 300191603.3 | N54: =Sheet3!A42 -> 2
B55: =IF(B54+1<=Sheet3!$C$2,B54+1,-9.99999999999999E+25) -> -1e+26 | C55: =SUMIF(Sheet3!C43:C474,B55,Sheet3!D43:D474) -> 0 | D55: =SUMIF(Sheet3!C43:C474,B55,Sheet3!G43:G474) -> 0 | E55: =SUMIF(Sheet3!C43:C474,B55,Sheet3!F43:F474) -> 0 | F55: -5.801314191e-07 | H55: =Sheet3!C43 -> 2025 | I55: =Sheet3!B43 -> 3 | J55: =Sheet3!E43 -> 300191603.3 | K55: =Sheet3!F43 -> 863264.4766 | L55: =Sheet3!G43 -> 1500958.016 | M55: =Sheet3!H43 -> 299328338.8 | N55: =Sheet3!A43 -> 2
B56: =IF(B55+1<=Sheet3!$C$2,B55+1,-9.99999999999999E+25) -> -1e+26 | C56: =SUMIF(Sheet3!C44:C475,B56,Sheet3!D44:D475) -> 0 | D56: =SUMIF(Sheet3!C44:C475,B56,Sheet3!G44:G475) -> 0 | E56: =SUMIF(Sheet3!C44:C475,B56,Sheet3!F44:F475) -> 0 | F56: -5.801314191e-07 | H56: =Sheet3!C44 -> 2025 | I56: =Sheet3!B44 -> 4 | J56: =Sheet3!E44 -> 299328338.8 | K56: =Sheet3!F44 -> 867580.799 | L56: =Sheet3!G44 -> 1496641.694 | M56: =Sheet3!H44 -> 298460758 | N56: =Sheet3!A44 -> 2
B57: =IF(B56+1<=Sheet3!$C$2,B56+1,-9.99999999999999E+25) -> -1e+26 | C57: =SUMIF(Sheet3!C45:C476,B57,Sheet3!D45:D476) -> 0 | D57: =SUMIF(Sheet3!C45:C476,B57,Sheet3!G45:G476) -> 0 | E57: =SUMIF(Sheet3!C45:C476,B57,Sheet3!F45:F476) -> 0 | F57: -5.801314191e-07 | H57: =Sheet3!C45 -> 2025 | I57: =Sheet3!B45 -> 5 | J57: =Sheet3!E45 -> 298460758 | K57: =Sheet3!F45 -> 871918.703 | L57: =Sheet3!G45 -> 1492303.79 | M57: =Sheet3!H45 -> 297588839.3 | N57: =Sheet3!A45 -> 2
B58: =IF(B57+1<=Sheet3!$C$2,B57+1,-9.99999999999999E+25) -> -1e+26 | C58: =SUMIF(Sheet3!C46:C477,B58,Sheet3!D46:D477) -> 0 | D58: =SUMIF(Sheet3!C46:C477,B58,Sheet3!G46:G477) -> 0 | E58: =SUMIF(Sheet3!C46:C477,B58,Sheet3!F46:F477) -> 0 | F58: -5.801314191e-07 | H58: =Sheet3!C46 -> 2025 | I58: =Sheet3!B46 -> 6 | J58: =Sheet3!E46 -> 297588839.3 | K58: =Sheet3!F46 -> 876278.2965 | L58: =Sheet3!G46 -> 1487944.196 | M58: =Sheet3!H46 -> 296712561 | N58: =Sheet3!A46 -> 2
B59: =IF(B58+1<=Sheet3!$C$2,B58+1,-9.99999999999999E+25) -> -1e+26 | C59: =SUMIF(Sheet3!C47:C478,B59,Sheet3!D47:D478) -> 0 | D59: =SUMIF(Sheet3!C47:C478,B59,Sheet3!G47:G478) -> 0 | E59: =SUMIF(Sheet3!C47:C478,B59,Sheet3!F47:F478) -> 0 | F59: -5.801314191e-07 | H59: =Sheet3!C47 -> 2025 | I59: =Sheet3!B47 -> 7 | J59: =Sheet3!E47 -> 296712561 | K59: =Sheet3!F47 -> 880659.688 | L59: =Sheet3!G47 -> 1483562.805 | M59: =Sheet3!H47 -> 295831901.3 | N59: =Sheet3!A47 -> 2
B60: =IF(B59+1<=Sheet3!$C$2,B59+1,-9.99999999999999E+25) -> -1e+26 | C60: =SUMIF(Sheet3!C48:C479,B60,Sheet3!D48:D479) -> 0 | D60: =SUMIF(Sheet3!C48:C479,B60,Sheet3!G48:G479) -> 0 | E60: =SUMIF(Sheet3!C48:C479,B60,Sheet3!F48:F479) -> 0 | F60: -5.801314191e-07 | H60: =Sheet3!C48 -> 2025 | I60: =Sheet3!B48 -> 8 | J60: =Sheet3!E48 -> 295831901.3 | K60: =Sheet3!F48 -> 885062.9864 | L60: =Sheet3!G48 -> 1479159.507 | M60: =Sheet3!H48 -> 294946838.3 | N60: =Sheet3!A48 -> 2
B61: =IF(B60+1<=Sheet3!$C$2,B60+1,-9.99999999999999E+25) -> -1e+26 | C61: =SUMIF(Sheet3!C49:C480,B61,Sheet3!D49:D480) -> 0 | D61: =SUMIF(Sheet3!C49:C480,B61,Sheet3!G49:G480) -> 0 | E61: =SUMIF(Sheet3!C49:C480,B61,Sheet3!F49:F480) -> 0 | F61: -5.801314191e-07 | H61: =Sheet3!C49 -> 2025 | I61: =Sheet3!B49 -> 9 | J61: =Sheet3!E49 -> 294946838.3 | K61: =Sheet3!F49 -> 889488.3014 | L61: =Sheet3!G49 -> 1474734.192 | M61: =Sheet3!H49 -> 294057350 | N61: =Sheet3!A49 -> 2
B62: =IF(B61+1<=Sheet3!$C$2,B61+1,-9.99999999999999E+25) -> -1e+26 | C62: =SUMIF(Sheet3!C50:C481,B62,Sheet3!D50:D481) -> 0 | D62: =SUMIF(Sheet3!C50:C481,B62,Sheet3!G50:G481) -> 0 | E62: =SUMIF(Sheet3!C50:C481,B62,Sheet3!F50:F481) -> 0 | F62: -5.801314191e-07 | H62: =Sheet3!C50 -> 2025 | I62: =Sheet3!B50 -> 10 | J62: =Sheet3!E50 -> 294057350 | K62: =Sheet3!F50 -> 893935.7429 | L62: =Sheet3!G50 -> 1470286.75 | M62: =Sheet3!H50 -> 293163414.3 | N62: =Sheet3!A50 -> 2
B63: =IF(B62+1<=Sheet3!$C$2,B62+1,-9.99999999999999E+25) -> -1e+26 | C63: =SUMIF(Sheet3!C51:C482,B63,Sheet3!D51:D482) -> 0 | D63: =SUMIF(Sheet3!C51:C482,B63,Sheet3!G51:G482) -> 0 | E63: =SUMIF(Sheet3!C51:C482,B63,Sheet3!F51:F482) -> 0 | F63: -5.801314191e-07 | H63: =Sheet3!C51 -> 2025 | I63: =Sheet3!B51 -> 11 | J63: =Sheet3!E51 -> 293163414.3 | K63: =Sheet3!F51 -> 898405.4216 | L63: =Sheet3!G51 -> 1465817.071 | M63: =Sheet3!H51 -> 292265008.9 | N63: =Sheet3!A51 -> 2
B64: =IF(B63+1<=Sheet3!$C$2,B63+1,-9.99999999999999E+25) -> -1e+26 | C64: =SUMIF(Sheet3!C52:C483,B64,Sheet3!D52:D483) -> 0 | D64: =SUMIF(Sheet3!C52:C483,B64,Sheet3!G52:G483) -> 0 | E64: =SUMIF(Sheet3!C52:C483,B64,Sheet3!F52:F483) -> 0 | F64: -5.801314191e-07 | H64: =Sheet3!C52 -> 2025 | I64: =Sheet3!B52 -> 12 | J64: =Sheet3!E52 -> 292265008.9 | K64: =Sheet3!F52 -> 902897.4487 | L64: =Sheet3!G52 -> 1461325.044 | M64: =Sheet3!H52 -> 291362111.4 | N64: =Sheet3!A52 -> 2
B65: =IF(B64+1<=Sheet3!$C$2,B64+1,-9.99999999999999E+25) -> -1e+26 | C65: =SUMIF(Sheet3!C53:C484,B65,Sheet3!D53:D484) -> 0 | D65: =SUMIF(Sheet3!C53:C484,B65,Sheet3!G53:G484) -> 0 | E65: =SUMIF(Sheet3!C53:C484,B65,Sheet3!F53:F484) -> 0 | F65: -5.801314191e-07 | H65: =Sheet3!C53 -> 2026 | I65: =Sheet3!B53 -> 1 | J65: =Sheet3!E53 -> 291362111.4 | K65: =Sheet3!F53 -> 907411.9359 | L65: =Sheet3!G53 -> 1456810.557 | M65: =Sheet3!H53 -> 290454699.5 | N65: =Sheet3!A53 -> 2
B66: =IF(B65+1<=Sheet3!$C$2,B65+1,-9.99999999999999E+25) -> -1e+26 | C66: =SUMIF(Sheet3!C54:C485,B66,Sheet3!D54:D485) -> 0 | D66: =SUMIF(Sheet3!C54:C485,B66,Sheet3!G54:G485) -> 0 | E66: =SUMIF(Sheet3!C54:C485,B66,Sheet3!F54:F485) -> 0 | F66: -5.801314191e-07 | H66: =Sheet3!C54 -> 2026 | I66: =Sheet3!B54 -> 2 | J66: =Sheet3!E54 -> 290454699.5 | K66: =Sheet3!F54 -> 911948.9956 | L66: =Sheet3!G54 -> 1452273.497 | M66: =Sheet3!H54 -> 289542750.5 | N66: =Sheet3!A54 -> 2
B67: =IF(B66+1<=Sheet3!$C$2,B66+1,-9.99999999999999E+25) -> -1e+26 | C67: =SUMIF(Sheet3!C55:C486,B67,Sheet3!D55:D486) -> 0 | D67: =SUMIF(Sheet3!C55:C486,B67,Sheet3!G55:G486) -> 0 | E67: =SUMIF(Sheet3!C55:C486,B67,Sheet3!F55:F486) -> 0 | F67: -5.801314191e-07 | H67: =Sheet3!C55 -> 2026 | I67: =Sheet3!B55 -> 3 | J67: =Sheet3!E55 -> 289542750.5 | K67: =Sheet3!F55 -> 916508.7406 | L67: =Sheet3!G55 -> 1447713.752 | M67: =Sheet3!H55 -> 288626241.7 | N67: =Sheet3!A55 -> 2
B68: =IF(B67+1<=Sheet3!$C$2,B67+1,-9.99999999999999E+25) -> -1e+26 | C68: =SUMIF(Sheet3!C56:C487,B68,Sheet3!D56:D487) -> 0 | D68: =SUMIF(Sheet3!C56:C487,B68,Sheet3!G56:G487) -> 0 | E68: =SUMIF(Sheet3!C56:C487,B68,Sheet3!F56:F487) -> 0 | F68: -5.801314191e-07 | H68: =Sheet3!C56 -> 2026 | I68: =Sheet3!B56 -> 4 | J68: =Sheet3!E56 -> 288626241.7 | K68: =Sheet3!F56 -> 921091.2843 | L68: =Sheet3!G56 -> 1443131.209 | M68: =Sheet3!H56 -> 287705150.5 | N68: =Sheet3!A56 -> 2
B69: =IF(B68+1<=Sheet3!$C$2,B68+1,-9.99999999999999E+25) -> -1e+26 | C69: =SUMIF(Sheet3!C57:C488,B69,Sheet3!D57:D488) -> 0 | D69: =SUMIF(Sheet3!C57:C488,B69,Sheet3!G57:G488) -> 0 | E69: =SUMIF(Sheet3!C57:C488,B69,Sheet3!F57:F488) -> 0 | F69: -5.801314191e-07 | H69: =Sheet3!C57 -> 2026 | I69: =Sheet3!B57 -> 5 | J69: =Sheet3!E57 -> 287705150.5 | K69: =Sheet3!F57 -> 925696.7407 | L69: =Sheet3!G57 -> 1438525.752 | M69: =Sheet3!H57 -> 286779453.7 | N69: =Sheet3!A57 -> 2
B70: =IF(B69+1<=Sheet3!$C$2,B69+1,-9.99999999999999E+25) -> -1e+26 | C70: =SUMIF(Sheet3!C58:C489,B70,Sheet3!D58:D489) -> 0 | D70: =SUMIF(Sheet3!C58:C489,B70,Sheet3!G58:G489) -> 0 | E70: =SUMIF(Sheet3!C58:C489,B70,Sheet3!F58:F489) -> 0 | F70: -5.801314191e-07 | H70: =Sheet3!C58 -> 2026 | I70: =Sheet3!B58 -> 6 | J70: =Sheet3!E58 -> 286779453.7 | K70: =Sheet3!F58 -> 930325.2244 | L70: =Sheet3!G58 -> 1433897.269 | M70: =Sheet3!H58 -> 285849128.5 | N70: =Sheet3!A58 -> 2
B71: =IF(B70+1<=Sheet3!$C$2,B70+1,-9.99999999999999E+25) -> -1e+26 | C71: =SUMIF(Sheet3!C59:C490,B71,Sheet3!D59:D490) -> 0 | D71: =SUMIF(Sheet3!C59:C490,B71,Sheet3!G59:G490) -> 0 | E71: =SUMIF(Sheet3!C59:C490,B71,Sheet3!F59:F490) -> 0 | F71: -5.801314191e-07 | H71: =Sheet3!C59 -> 2026 | I71: =Sheet3!B59 -> 7 | J71: =Sheet3!E59 -> 285849128.5 | K71: =Sheet3!F59 -> 934976.8505 | L71: =Sheet3!G59 -> 1429245.642 | M71: =Sheet3!H59 -> 284914151.6 | N71: =Sheet3!A59 -> 2
B72: =IF(B71+1<=Sheet3!$C$2,B71+1,-9.99999999999999E+25) -> -1e+26 | C72: =SUMIF(Sheet3!C60:C491,B72,Sheet3!D60:D491) -> 0 | D72: =SUMIF(Sheet3!C60:C491,B72,Sheet3!G60:G491) -> 0 | E72: =SUMIF(Sheet3!C60:C491,B72,Sheet3!F60:F491) -> 0 | F72: -5.801314191e-07 | H72: =Sheet3!C60 -> 2026 | I72: =Sheet3!B60 -> 8 | J72: =Sheet3!E60 -> 284914151.6 | K72: =Sheet3!F60 -> 939651.7348 | L72: =Sheet3!G60 -> 1424570.758 | M72: =Sheet3!H60 -> 283974499.9 | N72: =Sheet3!A60 -> 2
B73: =IF(B72+1<=Sheet3!$C$2,B72+1,-9.99999999999999E+25) -> -1e+26 | C73: =SUMIF(Sheet3!C61:C492,B73,Sheet3!D61:D492) -> 0 | D73: =SUMIF(Sheet3!C61:C492,B73,Sheet3!G61:G492) -> 0 | E73: =SUMIF(Sheet3!C61:C492,B73,Sheet3!F61:F492) -> 0 | F73: -5.801314191e-07 | H73: =Sheet3!C61 -> 2026 | I73: =Sheet3!B61 -> 9 | J73: =Sheet3!E61 -> 283974499.9 | K73: =Sheet3!F61 -> 944349.9935 | L73: =Sheet3!G61 -> 1419872.5 | M73: =Sheet3!H61 -> 283030149.9 | N73: =Sheet3!A61 -> 2
B74: =IF(B73+1<=Sheet3!$C$2,B73+1,-9.99999999999999E+25) -> -1e+26 | C74: =SUMIF(Sheet3!C62:C493,B74,Sheet3!D62:D493) -> 0 | D74: =SUMIF(Sheet3!C62:C493,B74,Sheet3!G62:G493) -> 0 | E74: =SUMIF(Sheet3!C62:C493,B74,Sheet3!F62:F493) -> 0 | F74: -5.801314191e-07 | H74: =Sheet3!C62 -> 2026 | I74: =Sheet3!B62 -> 10 | J74: =Sheet3!E62 -> 283030149.9 | K74: =Sheet3!F62 -> 949071.7434 | L74: =Sheet3!G62 -> 1415150.75 | M74: =Sheet3!H62 -> 282081078.2 | N74: =Sheet3!A62 -> 2
B75: =IF(B74+1<=Sheet3!$C$2,B74+1,-9.99999999999999E+25) -> -1e+26 | C75: =SUMIF(Sheet3!C63:C494,B75,Sheet3!D63:D494) -> 0 | D75: =SUMIF(Sheet3!C63:C494,B75,Sheet3!G63:G494) -> 0 | E75: =SUMIF(Sheet3!C63:C494,B75,Sheet3!F63:F494) -> 0 | F75: -5.801314191e-07 | H75: =Sheet3!C63 -> 2026 | I75: =Sheet3!B63 -> 11 | J75: =Sheet3!E63 -> 282081078.2 | K75: =Sheet3!F63 -> 953817.1022 | L75: =Sheet3!G63 -> 1410405.391 | M75: =Sheet3!H63 -> 281127261.1 | N75: =Sheet3!A63 -> 2
B76: =IF(B75+1<=Sheet3!$C$2,B75+1,-9.99999999999999E+25) -> -1e+26 | C76: =SUMIF(Sheet3!C64:C495,B76,Sheet3!D64:D495) -> 0 | D76: =SUMIF(Sheet3!C64:C495,B76,Sheet3!G64:G495) -> 0 | E76: =SUMIF(Sheet3!C64:C495,B76,Sheet3!F64:F495) -> 0 | F76: -5.801314191e-07 | H76: =Sheet3!C64 -> 2026 | I76: =Sheet3!B64 -> 12 | J76: =Sheet3!E64 -> 281127261.1 | K76: =Sheet3!F64 -> 958586.1877 | L76: =Sheet3!G64 -> 1405636.305 | M76: =Sheet3!H64 -> 280168674.9 | N76: =Sheet3!A64 -> 2
B77: =IF(B76+1<=Sheet3!$C$2,B76+1,-9.99999999999999E+25) -> -1e+26 | C77: =SUMIF(Sheet3!C65:C496,B77,Sheet3!D65:D496) -> 0 | D77: =SUMIF(Sheet3!C65:C496,B77,Sheet3!G65:G496) -> 0 | E77: =SUMIF(Sheet3!C65:C496,B77,Sheet3!F65:F496) -> 0 | F77: -5.801314191e-07 | H77: =Sheet3!C65 -> 2027 | I77: =Sheet3!B65 -> 1 | J77: =Sheet3!E65 -> 280168674.9 | K77: =Sheet3!F65 -> 963379.1186 | L77: =Sheet3!G65 -> 1400843.374 | M77: =Sheet3!H65 -> 279205295.8 | N77: =Sheet3!A65 -> 2
B78: =IF(B77+1<=Sheet3!$C$2,B77+1,-9.99999999999999E+25) -> -1e+26 | C78: =SUMIF(Sheet3!C66:C497,B78,Sheet3!D66:D497) -> 0 | D78: =SUMIF(Sheet3!C66:C497,B78,Sheet3!G66:G497) -> 0 | E78: =SUMIF(Sheet3!C66:C497,B78,Sheet3!F66:F497) -> 0 | F78: -5.801314191e-07 | H78: =Sheet3!C66 -> 2027 | I78: =Sheet3!B66 -> 2 | J78: =Sheet3!E66 -> 279205295.8 | K78: =Sheet3!F66 -> 968196.0142 | L78: =Sheet3!G66 -> 1396026.479 | M78: =Sheet3!H66 -> 278237099.7 | N78: =Sheet3!A66 -> 2
B79: =IF(B78+1<=Sheet3!$C$2,B78+1,-9.99999999999999E+25) -> -1e+26 | C79: =SUMIF(Sheet3!C67:C498,B79,Sheet3!D67:D498) -> 0 | D79: =SUMIF(Sheet3!C67:C498,B79,Sheet3!G67:G498) -> 0 | E79: =SUMIF(Sheet3!C67:C498,B79,Sheet3!F67:F498) -> 0 | F79: -5.801314191e-07 | H79: =Sheet3!C67 -> 2027 | I79: =Sheet3!B67 -> 3 | J79: =Sheet3!E67 -> 278237099.7 | K79: =Sheet3!F67 -> 973036.9943 | L79: =Sheet3!G67 -> 1391185.499 | M79: =Sheet3!H67 -> 277264062.7 | N79: =Sheet3!A67 -> 2
B80: =IF(B79+1<=Sheet3!$C$2,B79+1,-9.99999999999999E+25) -> -1e+26 | C80: =SUMIF(Sheet3!C68:C499,B80,Sheet3!D68:D499) -> 0 | D80: =SUMIF(Sheet3!C68:C499,B80,Sheet3!G68:G499) -> 0 | E80: =SUMIF(Sheet3!C68:C499,B80,Sheet3!F68:F499) -> 0 | F80: -5.801314191e-07 | H80: =Sheet3!C68 -> 2027 | I80: =Sheet3!B68 -> 4 | J80: =Sheet3!E68 -> 277264062.7 | K80: =Sheet3!F68 -> 977902.1792 | L80: =Sheet3!G68 -> 1386320.314 | M80: =Sheet3!H68 -> 276286160.6 | N80: =Sheet3!A68 -> 2
B81: =IF(B80+1<=Sheet3!$C$2,B80+1,-9.99999999999999E+25) -> -1e+26 | C81: =SUMIF(Sheet3!C69:C500,B81,Sheet3!D69:D500) -> 0 | D81: =SUMIF(Sheet3!C69:C500,B81,Sheet3!G69:G500) -> 0 | E81: =SUMIF(Sheet3!C69:C500,B81,Sheet3!F69:F500) -> 0 | F81: -5.801314191e-07 | H81: =Sheet3!C69 -> 2027 | I81: =Sheet3!B69 -> 5 | J81: =Sheet3!E69 -> 276286160.6 | K81: =Sheet3!F69 -> 982791.6901 | L81: =Sheet3!G69 -> 1381430.803 | M81: =Sheet3!H69 -> 275303368.9 | N81: =Sheet3!A69 -> 2
B82: =IF(B81+1<=Sheet3!$C$2,B81+1,-9.99999999999999E+25) -> -1e+26 | C82: =SUMIF(Sheet3!C70:C501,B82,Sheet3!D70:D501) -> 0 | D82: =SUMIF(Sheet3!C70:C501,B82,Sheet3!G70:G501) -> 0 | E82: =SUMIF(Sheet3!C70:C501,B82,Sheet3!F70:F501) -> 0 | F82: -5.801314191e-07 | H82: =Sheet3!C70 -> 2027 | I82: =Sheet3!B70 -> 6 | J82: =Sheet3!E70 -> 275303368.9 | K82: =Sheet3!F70 -> 987705.6486 | L82: =Sheet3!G70 -> 1376516.844 | M82: =Sheet3!H70 -> 274315663.2 | N82: =Sheet3!A70 -> 2
B83: =IF(B82+1<=Sheet3!$C$2,B82+1,-9.99999999999999E+25) -> -1e+26 | C83: =SUMIF(Sheet3!C71:C502,B83,Sheet3!D71:D502) -> 0 | D83: =SUMIF(Sheet3!C71:C502,B83,Sheet3!G71:G502) -> 0 | E83: =SUMIF(Sheet3!C71:C502,B83,Sheet3!F71:F502) -> 0 | F83: -5.801314191e-07 | H83: =Sheet3!C71 -> 2027 | I83: =Sheet3!B71 -> 7 | J83: =Sheet3!E71 -> 274315663.2 | K83: =Sheet3!F71 -> 992644.1768 | L83: =Sheet3!G71 -> 1371578.316 | M83: =Sheet3!H71 -> 273323019.1 | N83: =Sheet3!A71 -> 2
B84: =IF(B83+1<=Sheet3!$C$2,B83+1,-9.99999999999999E+25) -> -1e+26 | C84: =SUMIF(Sheet3!C72:C503,B84,Sheet3!D72:D503) -> 0 | D84: =SUMIF(Sheet3!C72:C503,B84,Sheet3!G72:G503) -> 0 | E84: =SUMIF(Sheet3!C72:C503,B84,Sheet3!F72:F503) -> 0 | F84: -5.801314191e-07 | H84: =Sheet3!C72 -> 2027 | I84: =Sheet3!B72 -> 8 | J84: =Sheet3!E72 -> 273323019.1 | K84: =Sheet3!F72 -> 997607.3977 | L84: =Sheet3!G72 -> 1366615.095 | M84: =Sheet3!H72 -> 272325411.7 | N84: =Sheet3!A72 -> 2
B85: =IF(B84+1<=Sheet3!$C$2,B84+1,-9.99999999999999E+25) -> -1e+26 | C85: =SUMIF(Sheet3!C73:C504,B85,Sheet3!D73:D504) -> 0 | D85: =SUMIF(Sheet3!C73:C504,B85,Sheet3!G73:G504) -> 0 | E85: =SUMIF(Sheet3!C73:C504,B85,Sheet3!F73:F504) -> 0 | F85: =F84-E85 -> -5.801314191e-07 | H85: =Sheet3!C73 -> 2027 | I85: =Sheet3!B73 -> 9 | J85: =Sheet3!E73 -> 272325411.7 | K85: =Sheet3!F73 -> 1002595.435 | L85: =Sheet3!G73 -> 1361627.058 | M85: =Sheet3!H73 -> 271322816.2 | N85: =Sheet3!A73 -> 2
B86: =IF(B85+1<=Sheet3!$C$2,B85+1,-9.99999999999999E+25) -> -1e+26 | C86: =SUMIF(Sheet3!C74:C505,B86,Sheet3!D74:D505) -> 0 | D86: =SUMIF(Sheet3!C74:C505,B86,Sheet3!G74:G505) -> 0 | E86: =SUMIF(Sheet3!C74:C505,B86,Sheet3!F74:F505) -> 0 | F86: -5.801314191e-07 | H86: =Sheet3!C74 -> 2027 | I86: =Sheet3!B74 -> 10 | J86: =Sheet3!E74 -> 271322816.2 | K86: =Sheet3!F74 -> 1007608.412 | L86: =Sheet3!G74 -> 1356614.081 | M86: =Sheet3!H74 -> 270315207.8 | N86: =Sheet3!A74 -> 2
B87: =IF(B86+1<=Sheet3!$C$2,B86+1,-9.99999999999999E+25) -> -1e+26 | C87: =SUMIF(Sheet3!C75:C506,B87,Sheet3!D75:D506) -> 0 | D87: =SUMIF(Sheet3!C75:C506,B87,Sheet3!G75:G506) -> 0 | E87: =SUMIF(Sheet3!C75:C506,B87,Sheet3!F75:F506) -> 0 | F87: -5.801314191e-07 | H87: =Sheet3!C75 -> 2027 | I87: =Sheet3!B75 -> 11 | J87: =Sheet3!E75 -> 270315207.8 | K87: =Sheet3!F75 -> 1012646.454 | L87: =Sheet3!G75 -> 1351576.039 | M87: =Sheet3!H75 -> 269302561.4 | N87: =Sheet3!A75 -> 2
B88: =IF(B87+1<=Sheet3!$C$2,B87+1,-9.99999999999999E+25) -> -1e+26 | C88: =SUMIF(Sheet3!C76:C507,B88,Sheet3!D76:D507) -> 0 | D88: =SUMIF(Sheet3!C76:C507,B88,Sheet3!G76:G507) -> 0 | E88: =SUMIF(Sheet3!C76:C507,B88,Sheet3!F76:F507) -> 0 | F88: -5.801314191e-07 | H88: =Sheet3!C76 -> 2027 | I88: =Sheet3!B76 -> 12 | J88: =Sheet3!E76 -> 269302561.4 | K88: =Sheet3!F76 -> 1017709.686 | L88: =Sheet3!G76 -> 1346512.807 | M88: =Sheet3!H76 -> 268284851.7 | N88: =Sheet3!A76 -> 2
B89: =IF(B88+1<=Sheet3!$C$2,B88+1,-9.99999999999999E+25) -> -1e+26 | C89: =SUMIF(Sheet3!C77:C508,B89,Sheet3!D77:D508) -> 0 | D89: =SUMIF(Sheet3!C77:C508,B89,Sheet3!G77:G508) -> 0 | E89: =SUMIF(Sheet3!C77:C508,B89,Sheet3!F77:F508) -> 0 | F89: -5.801314191e-07 | H89: =Sheet3!C77 -> 2028 | I89: =Sheet3!B77 -> 1 | J89: =Sheet3!E77 -> 268284851.7 | K89: =Sheet3!F77 -> 1022798.235 | L89: =Sheet3!G77 -> 1341424.258 | M89: =Sheet3!H77 -> 267262053.4 | N89: =Sheet3!A77 -> 2
B90: =IF(B89+1<=Sheet3!$C$2,B89+1,-9.99999999999999E+25) -> -1e+26 | C90: =SUMIF(Sheet3!C78:C509,B90,Sheet3!D78:D509) -> 0 | D90: =SUMIF(Sheet3!C78:C509,B90,Sheet3!G78:G509) -> 0 | E90: =SUMIF(Sheet3!C78:C509,B90,Sheet3!F78:F509) -> 0 | F90: -5.801314191e-07 | H90: =Sheet3!C78 -> 2028 | I90: =Sheet3!B78 -> 2 | J90: =Sheet3!E78 -> 267262053.4 | K90: =Sheet3!F78 -> 1027912.226 | L90: =Sheet3!G78 -> 1336310.267 | M90: =Sheet3!H78 -> 266234141.2 | N90: =Sheet3!A78 -> 2
B91: =IF(B90+1<=Sheet3!$C$2,B90+1,-9.99999999999999E+25) -> -1e+26 | C91: =SUMIF(Sheet3!C79:C510,B91,Sheet3!D79:D510) -> 0 | D91: =SUMIF(Sheet3!C79:C510,B91,Sheet3!G79:G510) -> 0 | E91: =SUMIF(Sheet3!C79:C510,B91,Sheet3!F79:F510) -> 0 | F91: -5.801314191e-07 | H91: =Sheet3!C79 -> 2028 | I91: =Sheet3!B79 -> 3 | J91: =Sheet3!E79 -> 266234141.2 | K91: =Sheet3!F79 -> 1033051.787 | L91: =Sheet3!G79 -> 1331170.706 | M91: =Sheet3!H79 -> 265201089.4 | N91: =Sheet3!A79 -> 2
B92: =IF(B91+1<=Sheet3!$C$2,B91+1,-9.99999999999999E+25) -> -1e+26 | C92: =SUMIF(Sheet3!C80:C511,B92,Sheet3!D80:D511) -> 0 | D92: =SUMIF(Sheet3!C80:C511,B92,Sheet3!G80:G511) -> 0 | E92: =SUMIF(Sheet3!C80:C511,B92,Sheet3!F80:F511) -> 0 | F92: -5.801314191e-07 | H92: =Sheet3!C80 -> 2028 | I92: =Sheet3!B80 -> 4 | J92: =Sheet3!E80 -> 265201089.4 | K92: =Sheet3!F80 -> 1038217.046 | L92: =Sheet3!G80 -> 1326005.447 | M92: =Sheet3!H80 -> 264162872.4 | N92: =Sheet3!A80 -> 2
B93: =IF(B92+1<=Sheet3!$C$2,B92+1,-9.99999999999999E+25) -> -1e+26 | C93: =SUMIF(Sheet3!C81:C512,B93,Sheet3!D81:D512) -> 0 | D93: =SUMIF(Sheet3!C81:C512,B93,Sheet3!G81:G512) -> 0 | E93: =SUMIF(Sheet3!C81:C512,B93,Sheet3!F81:F512) -> 0 | F93: -5.801314191e-07 | H93: =Sheet3!C81 -> 2028 | I93: =Sheet3!B81 -> 5 | J93: =Sheet3!E81 -> 264162872.4 | K93: =Sheet3!F81 -> 1043408.131 | L93: =Sheet3!G81 -> 1320814.362 | M93: =Sheet3!H81 -> 263119464.2 | N93: =Sheet3!A81 -> 2
B94: =IF(B93+1<=Sheet3!$C$2,B93+1,-9.99999999999999E+25) -> -1e+26 | C94: =SUMIF(Sheet3!C82:C513,B94,Sheet3!D82:D513) -> 0 | D94: =SUMIF(Sheet3!C82:C513,B94,Sheet3!G82:G513) -> 0 | E94: =SUMIF(Sheet3!C82:C513,B94,Sheet3!F82:F513) -> 0 | F94: -5.801314191e-07 | H94: =Sheet3!C82 -> 2028 | I94: =Sheet3!B82 -> 6 | J94: =Sheet3!E82 -> 263119464.2 | K94: =Sheet3!F82 -> 1048625.172 | L94: =Sheet3!G82 -> 1315597.321 | M94: =Sheet3!H82 -> 262070839.1 | N94: =Sheet3!A82 -> 2
B95: =IF(B94+1<=Sheet3!$C$2,B94+1,-9.99999999999999E+25) -> -1e+26 | C95: =SUMIF(Sheet3!C83:C514,B95,Sheet3!D83:D514) -> 0 | D95: =SUMIF(Sheet3!C83:C514,B95,Sheet3!G83:G514) -> 0 | E95: =SUMIF(Sheet3!C83:C514,B95,Sheet3!F83:F514) -> 0 | F95: -5.801314191e-07 | H95: =Sheet3!C83 -> 2028 | I95: =Sheet3!B83 -> 7 | J95: =Sheet3!E83 -> 262070839.1 | K95: =Sheet3!F83 -> 1053868.298 | L95: =Sheet3!G83 -> 1310354.195 | M95: =Sheet3!H83 -> 261016970.8 | N95: =Sheet3!A83 -> 2
B96: =IF(B95+1<=Sheet3!$C$2,B95+1,-9.99999999999999E+25) -> -1e+26 | C96: =SUMIF(Sheet3!C84:C515,B96,Sheet3!D84:D515) -> 0 | D96: =SUMIF(Sheet3!C84:C515,B96,Sheet3!G84:G515) -> 0 | E96: =SUMIF(Sheet3!C84:C515,B96,Sheet3!F84:F515) -> 0 | F96: -5.801314191e-07 | H96: =Sheet3!C84 -> 2028 | I96: =Sheet3!B84 -> 8 | J96: =Sheet3!E84 -> 261016970.8 | K96: =Sheet3!F84 -> 1059137.639 | L96: =Sheet3!G84 -> 1305084.854 | M96: =Sheet3!H84 -> 259957833.1 | N96: =Sheet3!A84 -> 2
B97: =IF(B96+1<=Sheet3!$C$2,B96+1,-9.99999999999999E+25) -> -1e+26 | C97: =SUMIF(Sheet3!C85:C516,B97,Sheet3!D85:D516) -> 0 | D97: =SUMIF(Sheet3!C85:C516,B97,Sheet3!G85:G516) -> 0 | E97: =SUMIF(Sheet3!C85:C516,B97,Sheet3!F85:F516) -> 0 | F97: -5.801314191e-07 | H97: =Sheet3!C85 -> 2028 | I97: =Sheet3!B85 -> 9 | J97: =Sheet3!E85 -> 259957833.1 | K97: =Sheet3!F85 -> 1064433.327 | L97: =Sheet3!G85 -> 1299789.166 | M97: =Sheet3!H85 -> 258893399.8 | N97: =Sheet3!A85 -> 2
B98: =IF(B97+1<=Sheet3!$C$2,B97+1,-9.99999999999999E+25) -> -1e+26 | C98: =SUMIF(Sheet3!C86:C517,B98,Sheet3!D86:D517) -> 0 | D98: =SUMIF(Sheet3!C86:C517,B98,Sheet3!G86:G517) -> 0 | E98: =SUMIF(Sheet3!C86:C517,B98,Sheet3!F86:F517) -> 0 | F98: -5.801314191e-07 | H98: =Sheet3!C86 -> 2028 | I98: =Sheet3!B86 -> 10 | J98: =Sheet3!E86 -> 258893399.8 | K98: =Sheet3!F86 -> 1069755.494 | L98: =Sheet3!G86 -> 1294466.999 | M98: =Sheet3!H86 -> 257823644.3 | N98: =Sheet3!A86 -> 2
B99: =IF(B98+1<=Sheet3!$C$2,B98+1,-9.99999999999999E+25) -> -1e+26 | C99: =SUMIF(Sheet3!C87:C518,B99,Sheet3!D87:D518) -> 0 | D99: =SUMIF(Sheet3!C87:C518,B99,Sheet3!G87:G518) -> 0 | E99: =SUMIF(Sheet3!C87:C518,B99,Sheet3!F87:F518) -> 0 | F99: -5.801314191e-07 | H99: =Sheet3!C87 -> 2028 | I99: =Sheet3!B87 -> 11 | J99: =Sheet3!E87 -> 257823644.3 | K99: =Sheet3!F87 -> 1075104.271 | L99: =Sheet3!G87 -> 1289118.222 | M99: =Sheet3!H87 -> 256748540 | N99: =Sheet3!A87 -> 2
B100: =IF(B99+1<=Sheet3!$C$2,B99+1,-9.99999999999999E+25) -> -1e+26 | C100: =SUMIF(Sheet3!C88:C519,B100,Sheet3!D88:D519) -> 0 | D100: =SUMIF(Sheet3!C88:C519,B100,Sheet3!G88:G519) -> 0 | E100: =SUMIF(Sheet3!C88:C519,B100,Sheet3!F88:F519) -> 0 | F100: -5.801314191e-07 | H100: =Sheet3!C88 -> 2028 | I100: =Sheet3!B88 -> 12 | J100: =Sheet3!E88 -> 256748540 | K100: =Sheet3!F88 -> 1080479.793 | L100: =Sheet3!G88 -> 1283742.7 | M100: =Sheet3!H88 -> 255668060.2 | N100: =Sheet3!A88 -> 2
B101: =IF(B100+1<=Sheet3!$C$2,B100+1,-9.99999999999999E+25) -> -1e+26 | C101: =SUMIF(Sheet3!C89:C520,B101,Sheet3!D89:D520) -> 0 | D101: =SUMIF(Sheet3!C89:C520,B101,Sheet3!G89:G520) -> 0 | E101: =SUMIF(Sheet3!C89:C520,B101,Sheet3!F89:F520) -> 0 | F101: -5.801314191e-07 | H101: =Sheet3!C89 -> 2029 | I101: =Sheet3!B89 -> 1 | J101: =Sheet3!E89 -> 255668060.2 | K101: =Sheet3!F89 -> 1085882.192 | L101: =Sheet3!G89 -> 1278340.301 | M101: =Sheet3!H89 -> 254582178.1 | N101: =Sheet3!A89 -> 2
B102: =IF(B101+1<=Sheet3!$C$2,B101+1,-9.99999999999999E+25) -> -1e+26 | C102: =SUMIF(Sheet3!C90:C521,B102,Sheet3!D90:D521) -> 0 | D102: =SUMIF(Sheet3!C90:C521,B102,Sheet3!G90:G521) -> 0 | E102: =SUMIF(Sheet3!C90:C521,B102,Sheet3!F90:F521) -> 0 | F102: -5.801314191e-07 | H102: =Sheet3!C90 -> 2029 | I102: =Sheet3!B90 -> 2 | J102: =Sheet3!E90 -> 254582178.1 | K102: =Sheet3!F90 -> 1091311.603 | L102: =Sheet3!G90 -> 1272910.89 | M102: =Sheet3!H90 -> 253490866.5 | N102: =Sheet3!A90 -> 2
B103: =IF(B102+1<=Sheet3!$C$2,B102+1,-9.99999999999999E+25) -> -1e+26 | C103: =SUMIF(Sheet3!C91:C522,B103,Sheet3!D91:D522) -> 0 | D103: =SUMIF(Sheet3!C91:C522,B103,Sheet3!G91:G522) -> 0 | E103: =SUMIF(Sheet3!C91:C522,B103,Sheet3!F91:F522) -> 0 | F103: -5.801314191e-07 | H103: =Sheet3!C91 -> 2029 | I103: =Sheet3!B91 -> 3 | J103: =Sheet3!E91 -> 253490866.5 | K103: =Sheet3!F91 -> 1096768.161 | L103: =Sheet3!G91 -> 1267454.332 | M103: =Sheet3!H91 -> 252394098.3 | N103: =Sheet3!A91 -> 2
B104: =IF(B103+1<=Sheet3!$C$2,B103+1,-9.99999999999999E+25) -> -1e+26 | C104: =SUMIF(Sheet3!C92:C523,B104,Sheet3!D92:D523) -> 0 | D104: =SUMIF(Sheet3!C92:C523,B104,Sheet3!G92:G523) -> 0 | E104: =SUMIF(Sheet3!C92:C523,B104,Sheet3!F92:F523) -> 0 | F104: -5.801314191e-07 | H104: =Sheet3!C92 -> 2029 | I104: =Sheet3!B92 -> 4 | J104: =Sheet3!E92 -> 252394098.3 | K104: =Sheet3!F92 -> 1102252.002 | L104: =Sheet3!G92 -> 1261970.491 | M104: =Sheet3!H92 -> 251291846.3 | N104: =Sheet3!A92 -> 2
B105: =IF(B104+1<=Sheet3!$C$2,B104+1,-9.99999999999999E+25) -> -1e+26 | C105: =SUMIF(Sheet3!C93:C524,B105,Sheet3!D93:D524) -> 0 | D105: =SUMIF(Sheet3!C93:C524,B105,Sheet3!G93:G524) -> 0 | E105: =SUMIF(Sheet3!C93:C524,B105,Sheet3!F93:F524) -> 0 | F105: -5.801314191e-07 | H105: =Sheet3!C93 -> 2029 | I105: =Sheet3!B93 -> 5 | J105: =Sheet3!E93 -> 251291846.3 | K105: =Sheet3!F93 -> 1107763.262 | L105: =Sheet3!G93 -> 1256459.231 | M105: =Sheet3!H93 -> 250184083 | N105: =Sheet3!A93 -> 2
B106: =IF(B105+1<=Sheet3!$C$2,B105+1,-9.99999999999999E+25) -> -1e+26 | C106: =SUMIF(Sheet3!C94:C525,B106,Sheet3!D94:D525) -> 0 | D106: =SUMIF(Sheet3!C94:C525,B106,Sheet3!G94:G525) -> 0 | E106: =SUMIF(Sheet3!C94:C525,B106,Sheet3!F94:F525) -> 0 | F106: -5.801314191e-07 | H106: =Sheet3!C94 -> 2029 | I106: =Sheet3!B94 -> 6 | J106: =Sheet3!E94 -> 250184083 | K106: =Sheet3!F94 -> 1113302.078 | L106: =Sheet3!G94 -> 1250920.415 | M106: =Sheet3!H94 -> 249070781 | N106: =Sheet3!A94 -> 2
B107: =IF(B106+1<=Sheet3!$C$2,B106+1,-9.99999999999999E+25) -> -1e+26 | C107: =SUMIF(Sheet3!C95:C526,B107,Sheet3!D95:D526) -> 0 | D107: =SUMIF(Sheet3!C95:C526,B107,Sheet3!G95:G526) -> 0 | E107: =SUMIF(Sheet3!C95:C526,B107,Sheet3!F95:F526) -> 0 | F107: -5.801314191e-07 | H107: =Sheet3!C95 -> 2029 | I107: =Sheet3!B95 -> 7 | J107: =Sheet3!E95 -> 249070781 | K107: =Sheet3!F95 -> 1118868.588 | L107: =Sheet3!G95 -> 1245353.905 | M107: =Sheet3!H95 -> 247951912.4 | N107: =Sheet3!A95 -> 2
B108: =IF(B107+1<=Sheet3!$C$2,B107+1,-9.99999999999999E+25) -> -1e+26 | C108: =SUMIF(Sheet3!C96:C527,B108,Sheet3!D96:D527) -> 0 | D108: =SUMIF(Sheet3!C96:C527,B108,Sheet3!G96:G527) -> 0 | E108: =SUMIF(Sheet3!C96:C527,B108,Sheet3!F96:F527) -> 0 | F108: -5.801314191e-07 | H108: =Sheet3!C96 -> 2029 | I108: =Sheet3!B96 -> 8 | J108: =Sheet3!E96 -> 247951912.4 | K108: =Sheet3!F96 -> 1124462.931 | L108: =Sheet3!G96 -> 1239759.562 | M108: =Sheet3!H96 -> 246827449.4 | N108: =Sheet3!A96 -> 2
B109: =IF(B108+1<=Sheet3!$C$2,B108+1,-9.99999999999999E+25) -> -1e+26 | C109: =SUMIF(Sheet3!C97:C528,B109,Sheet3!D97:D528) -> 0 | D109: =SUMIF(Sheet3!C97:C528,B109,Sheet3!G97:G528) -> 0 | E109: =SUMIF(Sheet3!C97:C528,B109,Sheet3!F97:F528) -> 0 | F109: -5.801314191e-07 | H109: =Sheet3!C97 -> 2029 | I109: =Sheet3!B97 -> 9 | J109: =Sheet3!E97 -> 246827449.4 | K109: =Sheet3!F97 -> 1130085.246 | L109: =Sheet3!G97 -> 1234137.247 | M109: =Sheet3!H97 -> 245697364.2 | N109: =Sheet3!A97 -> 2
B110: =IF(B109+1<=Sheet3!$C$2,B109+1,-9.99999999999999E+25) -> -1e+26 | C110: =SUMIF(Sheet3!C98:C529,B110,Sheet3!D98:D529) -> 0 | D110: =SUMIF(Sheet3!C98:C529,B110,Sheet3!G98:G529) -> 0 | E110: =SUMIF(Sheet3!C98:C529,B110,Sheet3!F98:F529) -> 0 | F110: -5.801314191e-07 | H110: =Sheet3!C98 -> 2029 | I110: =Sheet3!B98 -> 10 | J110: =Sheet3!E98 -> 245697364.2 | K110: =Sheet3!F98 -> 1135735.672 | L110: =Sheet3!G98 -> 1228486.821 | M110: =Sheet3!H98 -> 244561628.5 | N110: =Sheet3!A98 -> 2
B111: =IF(B110+1<=Sheet3!$C$2,B110+1,-9.99999999999999E+25) -> -1e+26 | C111: =SUMIF(Sheet3!C99:C530,B111,Sheet3!D99:D530) -> 0 | D111: =SUMIF(Sheet3!C99:C530,B111,Sheet3!G99:G530) -> 0 | E111: =SUMIF(Sheet3!C99:C530,B111,Sheet3!F99:F530) -> 0 | F111: -5.801314191e-07 | H111: =Sheet3!C99 -> 2029 | I111: =Sheet3!B99 -> 11 | J111: =Sheet3!E99 -> 244561628.5 | K111: =Sheet3!F99 -> 1141414.35 | L111: =Sheet3!G99 -> 1222808.143 | M111: =Sheet3!H99 -> 243420214.2 | N111: =Sheet3!A99 -> 2
B112: =IF(B111+1<=Sheet3!$C$2,B111+1,-9.99999999999999E+25) -> -1e+26 | C112: =SUMIF(Sheet3!C100:C531,B112,Sheet3!D100:D531) -> 0 | D112: =SUMIF(Sheet3!C100:C531,B112,Sheet3!G100:G531) -> 0 | E112: =SUMIF(Sheet3!C100:C531,B112,Sheet3!F100:F531) -> 0 | F112: -5.801314191e-07 | H112: =Sheet3!C100 -> 2029 | I112: =Sheet3!B100 -> 12 | J112: =Sheet3!E100 -> 243420214.2 | K112: =Sheet3!F100 -> 1147121.422 | L112: =Sheet3!G100 -> 1217101.071 | M112: =Sheet3!H100 -> 242273092.7 | N112: =Sheet3!A100 -> 2
B113: =IF(B112+1<=Sheet3!$C$2,B112+1,-9.99999999999999E+25) -> -1e+26 | C113: =SUMIF(Sheet3!C101:C532,B113,Sheet3!D101:D532) -> 0 | D113: =SUMIF(Sheet3!C101:C532,B113,Sheet3!G101:G532) -> 0 | E113: =SUMIF(Sheet3!C101:C532,B113,Sheet3!F101:F532) -> 0 | F113: -5.801314191e-07 | H113: =Sheet3!C101 -> 2030 | I113: =Sheet3!B101 -> 1 | J113: =Sheet3!E101 -> 242273092.7 | K113: =Sheet3!F101 -> 1152857.029 | L113: =Sheet3!G101 -> 1211365.464 | M113: =Sheet3!H101 -> 241120235.7 | N113: =Sheet3!A101 -> 2
B114: =IF(B113+1<=Sheet3!$C$2,B113+1,-9.99999999999999E+25) -> -1e+26 | C114: =SUMIF(Sheet3!C102:C533,B114,Sheet3!D102:D533) -> 0 | D114: =SUMIF(Sheet3!C102:C533,B114,Sheet3!G102:G533) -> 0 | E114: =SUMIF(Sheet3!C102:C533,B114,Sheet3!F102:F533) -> 0 | F114: -5.801314191e-07 | H114: =Sheet3!C102 -> 2030 | I114: =Sheet3!B102 -> 2 | J114: =Sheet3!E102 -> 241120235.7 | K114: =Sheet3!F102 -> 1158621.314 | L114: =Sheet3!G102 -> 1205601.179 | M114: =Sheet3!H102 -> 239961614.4 | N114: =Sheet3!A102 -> 2
B115: =IF(B114+1<=Sheet3!$C$2,B114+1,-9.99999999999999E+25) -> -1e+26 | C115: =SUMIF(Sheet3!C103:C534,B115,Sheet3!D103:D534) -> 0 | D115: =SUMIF(Sheet3!C103:C534,B115,Sheet3!G103:G534) -> 0 | E115: =SUMIF(Sheet3!C103:C534,B115,Sheet3!F103:F534) -> 0 | F115: -5.801314191e-07 | H115: =Sheet3!C103 -> 2030 | I115: =Sheet3!B103 -> 3 | J115: =Sheet3!E103 -> 239961614.4 | K115: =Sheet3!F103 -> 1164414.421 | L115: =Sheet3!G103 -> 1199808.072 | M115: =Sheet3!H103 -> 238797200 | N115: =Sheet3!A103 -> 2
B116: =IF(B115+1<=Sheet3!$C$2,B115+1,-9.99999999999999E+25) -> -1e+26 | C116: =SUMIF(Sheet3!C104:C535,B116,Sheet3!D104:D535) -> 0 | D116: =SUMIF(Sheet3!C104:C535,B116,Sheet3!G104:G535) -> 0 | E116: =SUMIF(Sheet3!C104:C535,B116,Sheet3!F104:F535) -> 0 | F116: -5.801314191e-07 | H116: =Sheet3!C104 -> 2030 | I116: =Sheet3!B104 -> 4 | J116: =Sheet3!E104 -> 238797200 | K116: =Sheet3!F104 -> 1170236.493 | L116: =Sheet3!G104 -> 1193986 | M116: =Sheet3!H104 -> 237626963.5 | N116: =Sheet3!A104 -> 2
B117: =IF(B116+1<=Sheet3!$C$2,B116+1,-9.99999999999999E+25) -> -1e+26 | C117: =SUMIF(Sheet3!C105:C536,B117,Sheet3!D105:D536) -> 0 | D117: =SUMIF(Sheet3!C105:C536,B117,Sheet3!G105:G536) -> 0 | E117: =SUMIF(Sheet3!C105:C536,B117,Sheet3!F105:F536) -> 0 | F117: -5.801314191e-07 | H117: =Sheet3!C105 -> 2030 | I117: =Sheet3!B105 -> 5 | J117: =Sheet3!E105 -> 237626963.5 | K117: =Sheet3!F105 -> 1176087.676 | L117: =Sheet3!G105 -> 1188134.817 | M117: =Sheet3!H105 -> 236450875.8 | N117: =Sheet3!A105 -> 2
B118: =IF(B117+1<=Sheet3!$C$2,B117+1,-9.99999999999999E+25) -> -1e+26 | C118: =SUMIF(Sheet3!C106:C537,B118,Sheet3!D106:D537) -> 0 | D118: =SUMIF(Sheet3!C106:C537,B118,Sheet3!G106:G537) -> 0 | E118: =SUMIF(Sheet3!C106:C537,B118,Sheet3!F106:F537) -> 0 | F118: -5.801314191e-07 | H118: =Sheet3!C106 -> 2030 | I118: =Sheet3!B106 -> 6 | J118: =Sheet3!E106 -> 236450875.8 | K118: =Sheet3!F106 -> 1181968.114 | L118: =Sheet3!G106 -> 1182254.379 | M118: =Sheet3!H106 -> 235268907.7 | N118: =Sheet3!A106 -> 2
B119: =IF(B118+1<=Sheet3!$C$2,B118+1,-9.99999999999999E+25) -> -1e+26 | C119: =SUMIF(Sheet3!C107:C538,B119,Sheet3!D107:D538) -> 0 | D119: =SUMIF(Sheet3!C107:C538,B119,Sheet3!G107:G538) -> 0 | E119: =SUMIF(Sheet3!C107:C538,B119,Sheet3!F107:F538) -> 0 | F119: -5.801314191e-07 | H119: =Sheet3!C107 -> 2030 | I119: =Sheet3!B107 -> 7 | J119: =Sheet3!E107 -> 235268907.7 | K119: =Sheet3!F107 -> 1187877.954 | L119: =Sheet3!G107 -> 1176344.538 | M119: =Sheet3!H107 -> 234081029.7 | N119: =Sheet3!A107 -> 2
B120: =IF(B119+1<=Sheet3!$C$2,B119+1,-9.99999999999999E+25) -> -1e+26 | C120: =SUMIF(Sheet3!C108:C539,B120,Sheet3!D108:D539) -> 0 | D120: =SUMIF(Sheet3!C108:C539,B120,Sheet3!G108:G539) -> 0 | E120: =SUMIF(Sheet3!C108:C539,B120,Sheet3!F108:F539) -> 0 | F120: -5.801314191e-07 | H120: =Sheet3!C108 -> 2030 | I120: =Sheet3!B108 -> 8 | J120: =Sheet3!E108 -> 234081029.7 | K120: =Sheet3!F108 -> 1193817.344 | L120: =Sheet3!G108 -> 1170405.149 | M120: =Sheet3!H108 -> 232887212.4 | N120: =Sheet3!A108 -> 2
B121: =IF(B120+1<=Sheet3!$C$2,B120+1,-9.99999999999999E+25) -> -1e+26 | C121: =SUMIF(Sheet3!C109:C540,B121,Sheet3!D109:D540) -> 0 | D121: =SUMIF(Sheet3!C109:C540,B121,Sheet3!G109:G540) -> 0 | E121: =SUMIF(Sheet3!C109:C540,B121,Sheet3!F109:F540) -> 0 | F121: -5.801314191e-07 | H121: =Sheet3!C109 -> 2030 | I121: =Sheet3!B109 -> 9 | J121: =Sheet3!E109 -> 232887212.4 | K121: =Sheet3!F109 -> 1199786.431 | L121: =Sheet3!G109 -> 1164436.062 | M121: =Sheet3!H109 -> 231687426 | N121: =Sheet3!A109 -> 2
B122: =IF(B121+1<=Sheet3!$C$2,B121+1,-9.99999999999999E+25) -> -1e+26 | C122: =SUMIF(Sheet3!C110:C541,B122,Sheet3!D110:D541) -> 0 | D122: =SUMIF(Sheet3!C110:C541,B122,Sheet3!G110:G541) -> 0 | E122: =SUMIF(Sheet3!C110:C541,B122,Sheet3!F110:F541) -> 0 | F122: -5.801314191e-07 | H122: =Sheet3!C110 -> 2030 | I122: =Sheet3!B110 -> 10 | J122: =Sheet3!E110 -> 231687426 | K122: =Sheet3!F110 -> 1205785.363 | L122: =Sheet3!G110 -> 1158437.13 | M122: =Sheet3!H110 -> 230481640.6 | N122: =Sheet3!A110 -> 2
B123: =IF(B122+1<=Sheet3!$C$2,B122+1,-9.99999999999999E+25) -> -1e+26 | C123: =SUMIF(Sheet3!C111:C542,B123,Sheet3!D111:D542) -> 0 | D123: =SUMIF(Sheet3!C111:C542,B123,Sheet3!G111:G542) -> 0 | E123: =SUMIF(Sheet3!C111:C542,B123,Sheet3!F111:F542) -> 0 | F123: -5.801314191e-07 | H123: =Sheet3!C111 -> 2030 | I123: =Sheet3!B111 -> 11 | J123: =Sheet3!E111 -> 230481640.6 | K123: =Sheet3!F111 -> 1211814.29 | L123: =Sheet3!G111 -> 1152408.203 | M123: =Sheet3!H111 -> 229269826.3 | N123: =Sheet3!A111 -> 2
B124: =IF(B123+1<=Sheet3!$C$2,B123+1,-9.99999999999999E+25) -> -1e+26 | C124: =SUMIF(Sheet3!C112:C543,B124,Sheet3!D112:D543) -> 0 | D124: =SUMIF(Sheet3!C112:C543,B124,Sheet3!G112:G543) -> 0 | E124: =SUMIF(Sheet3!C112:C543,B124,Sheet3!F112:F543) -> 0 | F124: -5.801314191e-07 | H124: =Sheet3!C112 -> 2030 | I124: =Sheet3!B112 -> 12 | J124: =Sheet3!E112 -> 229269826.3 | K124: =Sheet3!F112 -> 1217873.361 | L124: =Sheet3!G112 -> 1146349.132 | M124: =Sheet3!H112 -> 228051953 | N124: =Sheet3!A112 -> 2
B125: =IF(B124+1<=Sheet3!$C$2,B124+1,-9.99999999999999E+25) -> -1e+26 | C125: =SUMIF(Sheet3!C113:C544,B125,Sheet3!D113:D544) -> 0 | D125: =SUMIF(Sheet3!C113:C544,B125,Sheet3!G113:G544) -> 0 | E125: =SUMIF(Sheet3!C113:C544,B125,Sheet3!F113:F544) -> 0 | F125: -5.801314191e-07 | H125: =Sheet3!C113 -> 2031 | I125: =Sheet3!B113 -> 1 | J125: =Sheet3!E113 -> 228051953 | K125: =Sheet3!F113 -> 1223962.728 | L125: =Sheet3!G113 -> 1140259.765 | M125: =Sheet3!H113 -> 226827990.2 | N125: =Sheet3!A113 -> 2
B126: =IF(B125+1<=Sheet3!$C$2,B125+1,-9.99999999999999E+25) -> -1e+26 | C126: =SUMIF(Sheet3!C114:C545,B126,Sheet3!D114:D545) -> 0 | D126: =SUMIF(Sheet3!C114:C545,B126,Sheet3!G114:G545) -> 0 | E126: =SUMIF(Sheet3!C114:C545,B126,Sheet3!F114:F545) -> 0 | F126: -5.801314191e-07 | H126: =Sheet3!C114 -> 2031 | I126: =Sheet3!B114 -> 2 | J126: =Sheet3!E114 -> 226827990.2 | K126: =Sheet3!F114 -> 1230082.542 | L126: =Sheet3!G114 -> 1134139.951 | M126: =Sheet3!H114 -> 225597907.7 | N126: =Sheet3!A114 -> 2
B127: =IF(B126+1<=Sheet3!$C$2,B126+1,-9.99999999999999E+25) -> -1e+26 | C127: =SUMIF(Sheet3!C115:C546,B127,Sheet3!D115:D546) -> 0 | D127: =SUMIF(Sheet3!C115:C546,B127,Sheet3!G115:G546) -> 0 | E127: =SUMIF(Sheet3!C115:C546,B127,Sheet3!F115:F546) -> 0 | F127: -5.801314191e-07 | H127: =Sheet3!C115 -> 2031 | I127: =Sheet3!B115 -> 3 | J127: =Sheet3!E115 -> 225597907.7 | K127: =Sheet3!F115 -> 1236232.955 | L127: =Sheet3!G115 -> 1127989.538 | M127: =Sheet3!H115 -> 224361674.7 | N127: =Sheet3!A115 -> 2
B128: =IF(B127+1<=Sheet3!$C$2,B127+1,-9.99999999999999E+25) -> -1e+26 | C128: =SUMIF(Sheet3!C116:C547,B128,Sheet3!D116:D547) -> 0 | D128: =SUMIF(Sheet3!C116:C547,B128,Sheet3!G116:G547) -> 0 | E128: =SUMIF(Sheet3!C116:C547,B128,Sheet3!F116:F547) -> 0 | F128: -5.801314191e-07 | H128: =Sheet3!C116 -> 2031 | I128: =Sheet3!B116 -> 4 | J128: =Sheet3!E116 -> 224361674.7 | K128: =Sheet3!F116 -> 1242414.119 | L128: =Sheet3!G116 -> 1121808.374 | M128: =Sheet3!H116 -> 223119260.6 | N128: =Sheet3!A116 -> 2
B129: =IF(B128+1<=Sheet3!$C$2,B128+1,-9.99999999999999E+25) -> -1e+26 | C129: =SUMIF(Sheet3!C117:C548,B129,Sheet3!D117:D548) -> 0 | D129: =SUMIF(Sheet3!C117:C548,B129,Sheet3!G117:G548) -> 0 | E129: =SUMIF(Sheet3!C117:C548,B129,Sheet3!F117:F548) -> 0 | F129: -5.801314191e-07 | H129: =Sheet3!C117 -> 2031 | I129: =Sheet3!B117 -> 5 | J129: =Sheet3!E117 -> 223119260.6 | K129: =Sheet3!F117 -> 1248626.19 | L129: =Sheet3!G117 -> 1115596.303 | M129: =Sheet3!H117 -> 221870634.4 | N129: =Sheet3!A117 -> 2
B130: =IF(B129+1<=Sheet3!$C$2,B129+1,-9.99999999999999E+25) -> -1e+26 | C130: =SUMIF(Sheet3!C118:C549,B130,Sheet3!D118:D549) -> 0 | D130: =SUMIF(Sheet3!C118:C549,B130,Sheet3!G118:G549) -> 0 | E130: =SUMIF(Sheet3!C118:C549,B130,Sheet3!F118:F549) -> 0 | F130: -5.801314191e-07 | H130: =Sheet3!C118 -> 2031 | I130: =Sheet3!B118 -> 6 | J130: =Sheet3!E118 -> 221870634.4 | K130: =Sheet3!F118 -> 1254869.321 | L130: =Sheet3!G118 -> 1109353.172 | M130: =Sheet3!H118 -> 220615765.1 | N130: =Sheet3!A118 -> 2
B131: =IF(B130+1<=Sheet3!$C$2,B130+1,-9.99999999999999E+25) -> -1e+26 | C131: =SUMIF(Sheet3!C119:C550,B131,Sheet3!D119:D550) -> 0 | D131: =SUMIF(Sheet3!C119:C550,B131,Sheet3!G119:G550) -> 0 | E131: =SUMIF(Sheet3!C119:C550,B131,Sheet3!F119:F550) -> 0 | F131: -5.801314191e-07 | H131: =Sheet3!C119 -> 2031 | I131: =Sheet3!B119 -> 7 | J131: =Sheet3!E119 -> 220615765.1 | K131: =Sheet3!F119 -> 1261143.667 | L131: =Sheet3!G119 -> 1103078.825 | M131: =Sheet3!H119 -> 219354621.4 | N131: =Sheet3!A119 -> 2
B132: =IF(B131+1<=Sheet3!$C$2,B131+1,-9.99999999999999E+25) -> -1e+26 | C132: =SUMIF(Sheet3!C120:C551,B132,Sheet3!D120:D551) -> 0 | D132: =SUMIF(Sheet3!C120:C551,B132,Sheet3!G120:G551) -> 0 | E132: =SUMIF(Sheet3!C120:C551,B132,Sheet3!F120:F551) -> 0 | F132: -5.801314191e-07 | H132: =Sheet3!C120 -> 2031 | I132: =Sheet3!B120 -> 8 | J132: =Sheet3!E120 -> 219354621.4 | K132: =Sheet3!F120 -> 1267449.386 | L132: =Sheet3!G120 -> 1096773.107 | M132: =Sheet3!H120 -> 218087172 | N132: =Sheet3!A120 -> 2
B133: =IF(B132+1<=Sheet3!$C$2,B132+1,-9.99999999999999E+25) -> -1e+26 | C133: =SUMIF(Sheet3!C121:C552,B133,Sheet3!D121:D552) -> 0 | D133: =SUMIF(Sheet3!C121:C552,B133,Sheet3!G121:G552) -> 0 | E133: =SUMIF(Sheet3!C121:C552,B133,Sheet3!F121:F552) -> 0 | F133: -5.801314191e-07 | H133: =Sheet3!C121 -> 2031 | I133: =Sheet3!B121 -> 9 | J133: =Sheet3!E121 -> 218087172 | K133: =Sheet3!F121 -> 1273786.633 | L133: =Sheet3!G121 -> 1090435.86 | M133: =Sheet3!H121 -> 216813385.4 | N133: =Sheet3!A121 -> 2
B134: =IF(B133+1<=Sheet3!$C$2,B133+1,-9.99999999999999E+25) -> -1e+26 | C134: =SUMIF(Sheet3!C122:C553,B134,Sheet3!D122:D553) -> 0 | D134: =SUMIF(Sheet3!C122:C553,B134,Sheet3!G122:G553) -> 0 | E134: =SUMIF(Sheet3!C122:C553,B134,Sheet3!F122:F553) -> 0 | F134: -5.801314191e-07 | H134: =Sheet3!C122 -> 2031 | I134: =Sheet3!B122 -> 10 | J134: =Sheet3!E122 -> 216813385.4 | K134: =Sheet3!F122 -> 1280155.566 | L134: =Sheet3!G122 -> 1084066.927 | M134: =Sheet3!H122 -> 215533229.8 | N134: =Sheet3!A122 -> 2
B135: =IF(B134+1<=Sheet3!$C$2,B134+1,-9.99999999999999E+25) -> -1e+26 | C135: =SUMIF(Sheet3!C123:C554,B135,Sheet3!D123:D554) -> 0 | D135: =SUMIF(Sheet3!C123:C554,B135,Sheet3!G123:G554) -> 0 | E135: =SUMIF(Sheet3!C123:C554,B135,Sheet3!F123:F554) -> 0 | F135: -5.801314191e-07 | H135: =Sheet3!C123 -> 2031 | I135: =Sheet3!B123 -> 11 | J135: =Sheet3!E123 -> 215533229.8 | K135: =Sheet3!F123 -> 1286556.344 | L135: =Sheet3!G123 -> 1077666.149 | M135: =Sheet3!H123 -> 214246673.5 | N135: =Sheet3!A123 -> 2
B136: =IF(B135+1<=Sheet3!$C$2,B135+1,-9.99999999999999E+25) -> -1e+26 | C136: =SUMIF(Sheet3!C124:C555,B136,Sheet3!D124:D555) -> 0 | D136: =SUMIF(Sheet3!C124:C555,B136,Sheet3!G124:G555) -> 0 | E136: =SUMIF(Sheet3!C124:C555,B136,Sheet3!F124:F555) -> 0 | F136: -5.801314191e-07 | H136: =Sheet3!C124 -> 2031 | I136: =Sheet3!B124 -> 12 | J136: =Sheet3!E124 -> 214246673.5 | K136: =Sheet3!F124 -> 1292989.125 | L136: =Sheet3!G124 -> 1071233.368 | M136: =Sheet3!H124 -> 212953684.4 | N136: =Sheet3!A124 -> 2
B137: =IF(B136+1<=Sheet3!$C$2,B136+1,-9.99999999999999E+25) -> -1e+26 | C137: =SUMIF(Sheet3!C125:C556,B137,Sheet3!D125:D556) -> 0 | D137: =SUMIF(Sheet3!C125:C556,B137,Sheet3!G125:G556) -> 0 | E137: =SUMIF(Sheet3!C125:C556,B137,Sheet3!F125:F556) -> 0 | F137: -5.801314191e-07 | H137: =Sheet3!C125 -> 2032 | I137: =Sheet3!B125 -> 1 | J137: =Sheet3!E125 -> 212953684.4 | K137: =Sheet3!F125 -> 1299454.071 | L137: =Sheet3!G125 -> 1064768.422 | M137: =Sheet3!H125 -> 211654230.3 | N137: =Sheet3!A125 -> 2
B138: =IF(B137+1<=Sheet3!$C$2,B137+1,-9.99999999999999E+25) -> -1e+26 | C138: =SUMIF(Sheet3!C126:C557,B138,Sheet3!D126:D557) -> 0 | D138: =SUMIF(Sheet3!C126:C557,B138,Sheet3!G126:G557) -> 0 | E138: =SUMIF(Sheet3!C126:C557,B138,Sheet3!F126:F557) -> 0 | F138: -5.801314191e-07 | H138: =Sheet3!C126 -> 2032 | I138: =Sheet3!B126 -> 2 | J138: =Sheet3!E126 -> 211654230.3 | K138: =Sheet3!F126 -> 1305951.341 | L138: =Sheet3!G126 -> 1058271.152 | M138: =Sheet3!H126 -> 210348279 | N138: =Sheet3!A126 -> 2
B139: =IF(B138+1<=Sheet3!$C$2,B138+1,-9.99999999999999E+25) -> -1e+26 | C139: =SUMIF(Sheet3!C127:C558,B139,Sheet3!D127:D558) -> 0 | D139: =SUMIF(Sheet3!C127:C558,B139,Sheet3!G127:G558) -> 0 | E139: =SUMIF(Sheet3!C127:C558,B139,Sheet3!F127:F558) -> 0 | F139: -5.801314191e-07 | H139: =Sheet3!C127 -> 2032 | I139: =Sheet3!B127 -> 3 | J139: =Sheet3!E127 -> 210348279 | K139: =Sheet3!F127 -> 1312481.098 | L139: =Sheet3!G127 -> 1051741.395 | M139: =Sheet3!H127 -> 209035797.9 | N139: =Sheet3!A127 -> 2
B140: =IF(B139+1<=Sheet3!$C$2,B139+1,-9.99999999999999E+25) -> -1e+26 | C140: =SUMIF(Sheet3!C128:C559,B140,Sheet3!D128:D559) -> 0 | D140: =SUMIF(Sheet3!C128:C559,B140,Sheet3!G128:G559) -> 0 | E140: =SUMIF(Sheet3!C128:C559,B140,Sheet3!F128:F559) -> 0 | F140: -5.801314191e-07 | H140: =Sheet3!C128 -> 2032 | I140: =Sheet3!B128 -> 4 | J140: =Sheet3!E128 -> 209035797.9 | K140: =Sheet3!F128 -> 1319043.504 | L140: =Sheet3!G128 -> 1045178.989 | M140: =Sheet3!H128 -> 207716754.4 | N140: =Sheet3!A128 -> 2
B141: =IF(B140+1<=Sheet3!$C$2,B140+1,-9.99999999999999E+25) -> -1e+26 | C141: =SUMIF(Sheet3!C129:C560,B141,Sheet3!D129:D560) -> 0 | D141: =SUMIF(Sheet3!C129:C560,B141,Sheet3!G129:G560) -> 0 | E141: =SUMIF(Sheet3!C129:C560,B141,Sheet3!F129:F560) -> 0 | F141: -5.801314191e-07 | H141: =Sheet3!C129 -> 2032 | I141: =Sheet3!B129 -> 5 | J141: =Sheet3!E129 -> 207716754.4 | K141: =Sheet3!F129 -> 1325638.721 | L141: =Sheet3!G129 -> 1038583.772 | M141: =Sheet3!H129 -> 206391115.6 | N141: =Sheet3!A129 -> 2
B142: =IF(B141+1<=Sheet3!$C$2,B141+1,-9.99999999999999E+25) -> -1e+26 | C142: =SUMIF(Sheet3!C130:C561,B142,Sheet3!D130:D561) -> 0 | D142: =SUMIF(Sheet3!C130:C561,B142,Sheet3!G130:G561) -> 0 | E142: =SUMIF(Sheet3!C130:C561,B142,Sheet3!F130:F561) -> 0 | F142: -5.801314191e-07 | H142: =Sheet3!C130 -> 2032 | I142: =Sheet3!B130 -> 6 | J142: =Sheet3!E130 -> 206391115.6 | K142: =Sheet3!F130 -> 1332266.915 | L142: =Sheet3!G130 -> 1031955.578 | M142: =Sheet3!H130 -> 205058848.7 | N142: =Sheet3!A130 -> 2
B143: =IF(B142+1<=Sheet3!$C$2,B142+1,-9.99999999999999E+25) -> -1e+26 | C143: =SUMIF(Sheet3!C131:C562,B143,Sheet3!D131:D562) -> 0 | D143: =SUMIF(Sheet3!C131:C562,B143,Sheet3!G131:G562) -> 0 | E143: =SUMIF(Sheet3!C131:C562,B143,Sheet3!F131:F562) -> 0 | F143: -5.801314191e-07 | H143: =Sheet3!C131 -> 2032 | I143: =Sheet3!B131 -> 7 | J143: =Sheet3!E131 -> 205058848.7 | K143: =Sheet3!F131 -> 1338928.249 | L143: =Sheet3!G131 -> 1025294.244 | M143: =Sheet3!H131 -> 203719920.5 | N143: =Sheet3!A131 -> 2
B144: =IF(B143+1<=Sheet3!$C$2,B143+1,-9.99999999999999E+25) -> -1e+26 | C144: =SUMIF(Sheet3!C132:C563,B144,Sheet3!D132:D563) -> 0 | D144: =SUMIF(Sheet3!C132:C563,B144,Sheet3!G132:G563) -> 0 | E144: =SUMIF(Sheet3!C132:C563,B144,Sheet3!F132:F563) -> 0 | F144: -5.801314191e-07 | H144: =Sheet3!C132 -> 2032 | I144: =Sheet3!B132 -> 8 | J144: =Sheet3!E132 -> 203719920.5 | K144: =Sheet3!F132 -> 1345622.891 | L144: =Sheet3!G132 -> 1018599.602 | M144: =Sheet3!H132 -> 202374297.6 | N144: =Sheet3!A132 -> 2
B145: =IF(B144+1<=Sheet3!$C$2,B144+1,-9.99999999999999E+25) -> -1e+26 | C145: =SUMIF(Sheet3!C133:C564,B145,Sheet3!D133:D564) -> 0 | D145: =SUMIF(Sheet3!C133:C564,B145,Sheet3!G133:G564) -> 0 | E145: =SUMIF(Sheet3!C133:C564,B145,Sheet3!F133:F564) -> 0 | F145: -5.801314191e-07 | H145: =Sheet3!C133 -> 2032 | I145: =Sheet3!B133 -> 9 | J145: =Sheet3!E133 -> 202374297.6 | K145: =Sheet3!F133 -> 1352351.005 | L145: =Sheet3!G133 -> 1011871.488 | M145: =Sheet3!H133 -> 201021946.6 | N145: =Sheet3!A133 -> 2
B146: =IF(B145+1<=Sheet3!$C$2,B145+1,-9.99999999999999E+25) -> -1e+26 | C146: =SUMIF(Sheet3!C134:C565,B146,Sheet3!D134:D565) -> 0 | D146: =SUMIF(Sheet3!C134:C565,B146,Sheet3!G134:G565) -> 0 | E146: =SUMIF(Sheet3!C134:C565,B146,Sheet3!F134:F565) -> 0 | F146: -5.801314191e-07 | H146: =Sheet3!C134 -> 2032 | I146: =Sheet3!B134 -> 10 | J146: =Sheet3!E134 -> 201021946.6 | K146: =Sheet3!F134 -> 1359112.76 | L146: =Sheet3!G134 -> 1005109.733 | M146: =Sheet3!H134 -> 199662833.8 | N146: =Sheet3!A134 -> 2
B147: =IF(B146+1<=Sheet3!$C$2,B146+1,-9.99999999999999E+25) -> -1e+26 | C147: =SUMIF(Sheet3!C135:C566,B147,Sheet3!D135:D566) -> 0 | D147: =SUMIF(Sheet3!C135:C566,B147,Sheet3!G135:G566) -> 0 | E147: =SUMIF(Sheet3!C135:C566,B147,Sheet3!F135:F566) -> 0 | F147: -5.801314191e-07 | H147: =Sheet3!C135 -> 2032 | I147: =Sheet3!B135 -> 11 | J147: =Sheet3!E135 -> 199662833.8 | K147: =Sheet3!F135 -> 1365908.324 | L147: =Sheet3!G135 -> 998314.1691 | M147: =Sheet3!H135 -> 198296925.5 | N147: =Sheet3!A135 -> 2
B148: =IF(B147+1<=Sheet3!$C$2,B147+1,-9.99999999999999E+25) -> -1e+26 | C148: =SUMIF(Sheet3!C136:C567,B148,Sheet3!D136:D567) -> 0 | D148: =SUMIF(Sheet3!C136:C567,B148,Sheet3!G136:G567) -> 0 | E148: =SUMIF(Sheet3!C136:C567,B148,Sheet3!F136:F567) -> 0 | F148: -5.801314191e-07 | H148: =Sheet3!C136 -> 2032 | I148: =Sheet3!B136 -> 12 | J148: =Sheet3!E136 -> 198296925.5 | K148: =Sheet3!F136 -> 1372737.865 | L148: =Sheet3!G136 -> 991484.6275 | M148: =Sheet3!H136 -> 196924187.6 | N148: =Sheet3!A136 -> 2
B149: =IF(B148+1<=Sheet3!$C$2,B148+1,-9.99999999999999E+25) -> -1e+26 | C149: =SUMIF(Sheet3!C137:C568,B149,Sheet3!D137:D568) -> 0 | D149: =SUMIF(Sheet3!C137:C568,B149,Sheet3!G137:G568) -> 0 | E149: =SUMIF(Sheet3!C137:C568,B149,Sheet3!F137:F568) -> 0 | F149: =F148-E149 -> -5.801314191e-07 | H149: =Sheet3!C137 -> 2033 | I149: =Sheet3!B137 -> 1 | J149: =Sheet3!E137 -> 196924187.6 | K149: =Sheet3!F137 -> 1379601.555 | L149: =Sheet3!G137 -> 984620.9382 | M149: =Sheet3!H137 -> 195544586.1 | N149: =Sheet3!A137 -> 2
B150: =IF(B149+1<=Sheet3!$C$2,B149+1,-9.99999999999999E+25) -> -1e+26 | C150: =SUMIF(Sheet3!C138:C569,B150,Sheet3!D138:D569) -> 0 | D150: =SUMIF(Sheet3!C138:C569,B150,Sheet3!G138:G569) -> 0 | E150: =SUMIF(Sheet3!C138:C569,B150,Sheet3!F138:F569) -> 0 | F150: -5.801314191e-07 | H150: =Sheet3!C138 -> 2033 | I150: =Sheet3!B138 -> 2 | J150: =Sheet3!E138 -> 195544586.1 | K150: =Sheet3!F138 -> 1386499.563 | L150: =Sheet3!G138 -> 977722.9304 | M150: =Sheet3!H138 -> 194158086.5 | N150: =Sheet3!A138 -> 2
B151: =IF(B150+1<=Sheet3!$C$2,B150+1,-9.99999999999999E+25) -> -1e+26 | C151: =SUMIF(Sheet3!C139:C570,B151,Sheet3!D139:D570) -> 0 | D151: =SUMIF(Sheet3!C139:C570,B151,Sheet3!G139:G570) -> 0 | E151: =SUMIF(Sheet3!C139:C570,B151,Sheet3!F139:F570) -> 0 | F151: -5.801314191e-07 | H151: =Sheet3!C139 -> 2033 | I151: =Sheet3!B139 -> 3 | J151: =Sheet3!E139 -> 194158086.5 | K151: =Sheet3!F139 -> 1393432.06 | L151: =Sheet3!G139 -> 970790.4326 | M151: =Sheet3!H139 -> 192764654.5 | N151: =Sheet3!A139 -> 2
B152: =IF(B151+1<=Sheet3!$C$2,B151+1,-9.99999999999999E+25) -> -1e+26 | C152: =SUMIF(Sheet3!C140:C571,B152,Sheet3!D140:D571) -> 0 | D152: =SUMIF(Sheet3!C140:C571,B152,Sheet3!G140:G571) -> 0 | E152: =SUMIF(Sheet3!C140:C571,B152,Sheet3!F140:F571) -> 0 | F152: -5.801314191e-07 | H152: =Sheet3!C140 -> 2033 | I152: =Sheet3!B140 -> 4 | J152: =Sheet3!E140 -> 192764654.5 | K152: =Sheet3!F140 -> 1400399.221 | L152: =Sheet3!G140 -> 963823.2723 | M152: =Sheet3!H140 -> 191364255.2 | N152: =Sheet3!A140 -> 2
B153: =IF(B152+1<=Sheet3!$C$2,B152+1,-9.99999999999999E+25) -> -1e+26 | C153: =SUMIF(Sheet3!C141:C572,B153,Sheet3!D141:D572) -> 0 | D153: =SUMIF(Sheet3!C141:C572,B153,Sheet3!G141:G572) -> 0 | E153: =SUMIF(Sheet3!C141:C572,B153,Sheet3!F141:F572) -> 0 | F153: -5.801314191e-07 | H153: =Sheet3!C141 -> 2033 | I153: =Sheet3!B141 -> 5 | J153: =Sheet3!E141 -> 191364255.2 | K153: =Sheet3!F141 -> 1407401.217 | L153: =Sheet3!G141 -> 956821.2762 | M153: =Sheet3!H141 -> 189956854 | N153: =Sheet3!A141 -> 2
B154: =IF(B153+1<=Sheet3!$C$2,B153+1,-9.99999999999999E+25) -> -1e+26 | C154: =SUMIF(Sheet3!C142:C573,B154,Sheet3!D142:D573) -> 0 | D154: =SUMIF(Sheet3!C142:C573,B154,Sheet3!G142:G573) -> 0 | E154: =SUMIF(Sheet3!C142:C573,B154,Sheet3!F142:F573) -> 0 | F154: -5.801314191e-07 | H154: =Sheet3!C142 -> 2033 | I154: =Sheet3!B142 -> 6 | J154: =Sheet3!E142 -> 189956854 | K154: =Sheet3!F142 -> 1414438.223 | L154: =Sheet3!G142 -> 949784.2701 | M154: =Sheet3!H142 -> 188542415.8 | N154: =Sheet3!A142 -> 2
B155: =IF(B154+1<=Sheet3!$C$2,B154+1,-9.99999999999999E+25) -> -1e+26 | C155: =SUMIF(Sheet3!C143:C574,B155,Sheet3!D143:D574) -> 0 | D155: =SUMIF(Sheet3!C143:C574,B155,Sheet3!G143:G574) -> 0 | E155: =SUMIF(Sheet3!C143:C574,B155,Sheet3!F143:F574) -> 0 | F155: -5.801314191e-07 | H155: =Sheet3!C143 -> 2033 | I155: =Sheet3!B143 -> 7 | J155: =Sheet3!E143 -> 188542415.8 | K155: =Sheet3!F143 -> 1421510.414 | L155: =Sheet3!G143 -> 942712.079 | M155: =Sheet3!H143 -> 187120905.4 | N155: =Sheet3!A143 -> 2
B156: =IF(B155+1<=Sheet3!$C$2,B155+1,-9.99999999999999E+25) -> -1e+26 | C156: =SUMIF(Sheet3!C144:C575,B156,Sheet3!D144:D575) -> 0 | D156: =SUMIF(Sheet3!C144:C575,B156,Sheet3!G144:G575) -> 0 | E156: =SUMIF(Sheet3!C144:C575,B156,Sheet3!F144:F575) -> 0 | F156: -5.801314191e-07 | H156: =Sheet3!C144 -> 2033 | I156: =Sheet3!B144 -> 8 | J156: =Sheet3!E144 -> 187120905.4 | K156: =Sheet3!F144 -> 1428617.966 | L156: =Sheet3!G144 -> 935604.5269 | M156: =Sheet3!H144 -> 185692287.4 | N156: =Sheet3!A144 -> 2
B157: =IF(B156+1<=Sheet3!$C$2,B156+1,-9.99999999999999E+25) -> -1e+26 | C157: =SUMIF(Sheet3!C145:C576,B157,Sheet3!D145:D576) -> 0 | D157: =SUMIF(Sheet3!C145:C576,B157,Sheet3!G145:G576) -> 0 | E157: =SUMIF(Sheet3!C145:C576,B157,Sheet3!F145:F576) -> 0 | F157: -5.801314191e-07 | H157: =Sheet3!C145 -> 2033 | I157: =Sheet3!B145 -> 9 | J157: =Sheet3!E145 -> 185692287.4 | K157: =Sheet3!F145 -> 1435761.056 | L157: =Sheet3!G145 -> 928461.4371 | M157: =Sheet3!H145 -> 184256526.4 | N157: =Sheet3!A145 -> 2
B158: =IF(B157+1<=Sheet3!$C$2,B157+1,-9.99999999999999E+25) -> -1e+26 | C158: =SUMIF(Sheet3!C146:C577,B158,Sheet3!D146:D577) -> 0 | D158: =SUMIF(Sheet3!C146:C577,B158,Sheet3!G146:G577) -> 0 | E158: =SUMIF(Sheet3!C146:C577,B158,Sheet3!F146:F577) -> 0 | F158: -5.801314191e-07 | H158: =Sheet3!C146 -> 2033 | I158: =Sheet3!B146 -> 10 | J158: =Sheet3!E146 -> 184256526.4 | K158: =Sheet3!F146 -> 1442939.861 | L158: =Sheet3!G146 -> 921282.6318 | M158: =Sheet3!H146 -> 182813586.5 | N158: =Sheet3!A146 -> 2
B159: =IF(B158+1<=Sheet3!$C$2,B158+1,-9.99999999999999E+25) -> -1e+26 | C159: =SUMIF(Sheet3!C147:C578,B159,Sheet3!D147:D578) -> 0 | D159: =SUMIF(Sheet3!C147:C578,B159,Sheet3!G147:G578) -> 0 | E159: =SUMIF(Sheet3!C147:C578,B159,Sheet3!F147:F578) -> 0 | F159: -5.801314191e-07 | H159: =Sheet3!C147 -> 2033 | I159: =Sheet3!B147 -> 11 | J159: =Sheet3!E147 -> 182813586.5 | K159: =Sheet3!F147 -> 1450154.56 | L159: =Sheet3!G147 -> 914067.9325 | M159: =Sheet3!H147 -> 181363431.9 | N159: =Sheet3!A147 -> 2
B160: =IF(B159+1<=Sheet3!$C$2,B159+1,-9.99999999999999E+25) -> -1e+26 | C160: =SUMIF(Sheet3!C148:C579,B160,Sheet3!D148:D579) -> 0 | D160: =SUMIF(Sheet3!C148:C579,B160,Sheet3!G148:G579) -> 0 | E160: =SUMIF(Sheet3!C148:C579,B160,Sheet3!F148:F579) -> 0 | F160: -5.801314191e-07 | H160: =Sheet3!C148 -> 2033 | I160: =Sheet3!B148 -> 12 | J160: =Sheet3!E148 -> 181363431.9 | K160: =Sheet3!F148 -> 1457405.333 | L160: =Sheet3!G148 -> 906817.1597 | M160: =Sheet3!H148 -> 179906026.6 | N160: =Sheet3!A148 -> 2
B161: =IF(B160+1<=Sheet3!$C$2,B160+1,-9.99999999999999E+25) -> -1e+26 | C161: =SUMIF(Sheet3!C149:C580,B161,Sheet3!D149:D580) -> 0 | D161: =SUMIF(Sheet3!C149:C580,B161,Sheet3!G149:G580) -> 0 | E161: =SUMIF(Sheet3!C149:C580,B161,Sheet3!F149:F580) -> 0 | F161: -5.801314191e-07 | H161: =Sheet3!C149 -> 2034 | I161: =Sheet3!B149 -> 1 | J161: =Sheet3!E149 -> 179906026.6 | K161: =Sheet3!F149 -> 1464692.36 | L161: =Sheet3!G149 -> 899530.133 | M161: =Sheet3!H149 -> 178441334.2 | N161: =Sheet3!A149 -> 2
B162: =IF(B161+1<=Sheet3!$C$2,B161+1,-9.99999999999999E+25) -> -1e+26 | C162: =SUMIF(Sheet3!C150:C581,B162,Sheet3!D150:D581) -> 0 | D162: =SUMIF(Sheet3!C150:C581,B162,Sheet3!G150:G581) -> 0 | E162: =SUMIF(Sheet3!C150:C581,B162,Sheet3!F150:F581) -> 0 | F162: -5.801314191e-07 | H162: =Sheet3!C150 -> 2034 | I162: =Sheet3!B150 -> 2 | J162: =Sheet3!E150 -> 178441334.2 | K162: =Sheet3!F150 -> 1472015.822 | L162: =Sheet3!G150 -> 892206.6712 | M162: =Sheet3!H150 -> 176969318.4 | N162: =Sheet3!A150 -> 2
B163: =IF(B162+1<=Sheet3!$C$2,B162+1,-9.99999999999999E+25) -> -1e+26 | C163: =SUMIF(Sheet3!C151:C582,B163,Sheet3!D151:D582) -> 0 | D163: =SUMIF(Sheet3!C151:C582,B163,Sheet3!G151:G582) -> 0 | E163: =SUMIF(Sheet3!C151:C582,B163,Sheet3!F151:F582) -> 0 | F163: -5.801314191e-07 | H163: =Sheet3!C151 -> 2034 | I163: =Sheet3!B151 -> 3 | J163: =Sheet3!E151 -> 176969318.4 | K163: =Sheet3!F151 -> 1479375.901 | L163: =Sheet3!G151 -> 884846.5921 | M163: =Sheet3!H151 -> 175489942.5 | N163: =Sheet3!A151 -> 2
B164: =IF(B163+1<=Sheet3!$C$2,B163+1,-9.99999999999999E+25) -> -1e+26 | C164: =SUMIF(Sheet3!C152:C583,B164,Sheet3!D152:D583) -> 0 | D164: =SUMIF(Sheet3!C152:C583,B164,Sheet3!G152:G583) -> 0 | E164: =SUMIF(Sheet3!C152:C583,B164,Sheet3!F152:F583) -> 0 | F164: -5.801314191e-07 | H164: =Sheet3!C152 -> 2034 | I164: =Sheet3!B152 -> 4 | J164: =Sheet3!E152 -> 175489942.5 | K164: =Sheet3!F152 -> 1486772.78 | L164: =Sheet3!G152 -> 877449.7126 | M164: =Sheet3!H152 -> 174003169.7 | N164: =Sheet3!A152 -> 2
B165: =IF(B164+1<=Sheet3!$C$2,B164+1,-9.99999999999999E+25) -> -1e+26 | C165: =SUMIF(Sheet3!C153:C584,B165,Sheet3!D153:D584) -> 0 | D165: =SUMIF(Sheet3!C153:C584,B165,Sheet3!G153:G584) -> 0 | E165: =SUMIF(Sheet3!C153:C584,B165,Sheet3!F153:F584) -> 0 | F165: -5.801314191e-07 | H165: =Sheet3!C153 -> 2034 | I165: =Sheet3!B153 -> 5 | J165: =Sheet3!E153 -> 174003169.7 | K165: =Sheet3!F153 -> 1494206.644 | L165: =Sheet3!G153 -> 870015.8487 | M165: =Sheet3!H153 -> 172508963.1 | N165: =Sheet3!A153 -> 2
B166: =IF(B165+1<=Sheet3!$C$2,B165+1,-9.99999999999999E+25) -> -1e+26 | C166: =SUMIF(Sheet3!C154:C585,B166,Sheet3!D154:D585) -> 0 | D166: =SUMIF(Sheet3!C154:C585,B166,Sheet3!G154:G585) -> 0 | E166: =SUMIF(Sheet3!C154:C585,B166,Sheet3!F154:F585) -> 0 | F166: -5.801314191e-07 | H166: =Sheet3!C154 -> 2034 | I166: =Sheet3!B154 -> 6 | J166: =Sheet3!E154 -> 172508963.1 | K166: =Sheet3!F154 -> 1501677.678 | L166: =Sheet3!G154 -> 862544.8155 | M166: =Sheet3!H154 -> 171007285.4 | N166: =Sheet3!A154 -> 2
B167: =IF(B166+1<=Sheet3!$C$2,B166+1,-9.99999999999999E+25) -> -1e+26 | C167: =SUMIF(Sheet3!C155:C586,B167,Sheet3!D155:D586) -> 0 | D167: =SUMIF(Sheet3!C155:C586,B167,Sheet3!G155:G586) -> 0 | E167: =SUMIF(Sheet3!C155:C586,B167,Sheet3!F155:F586) -> 0 | F167: -5.801314191e-07 | H167: =Sheet3!C155 -> 2034 | I167: =Sheet3!B155 -> 7 | J167: =Sheet3!E155 -> 171007285.4 | K167: =Sheet3!F155 -> 1509186.066 | L167: =Sheet3!G155 -> 855036.4271 | M167: =Sheet3!H155 -> 169498099.4 | N167: =Sheet3!A155 -> 2
B168: =IF(B167+1<=Sheet3!$C$2,B167+1,-9.99999999999999E+25) -> -1e+26 | C168: =SUMIF(Sheet3!C156:C587,B168,Sheet3!D156:D587) -> 0 | D168: =SUMIF(Sheet3!C156:C587,B168,Sheet3!G156:G587) -> 0 | E168: =SUMIF(Sheet3!C156:C587,B168,Sheet3!F156:F587) -> 0 | F168: -5.801314191e-07 | H168: =Sheet3!C156 -> 2034 | I168: =Sheet3!B156 -> 8 | J168: =Sheet3!E156 -> 169498099.4 | K168: =Sheet3!F156 -> 1516731.996 | L168: =Sheet3!G156 -> 847490.4968 | M168: =Sheet3!H156 -> 167981367.4 | N168: =Sheet3!A156 -> 2
B169: =IF(B168+1<=Sheet3!$C$2,B168+1,-9.99999999999999E+25) -> -1e+26 | C169: =SUMIF(Sheet3!C157:C588,B169,Sheet3!D157:D588) -> 0 | D169: =SUMIF(Sheet3!C157:C588,B169,Sheet3!G157:G588) -> 0 | E169: =SUMIF(Sheet3!C157:C588,B169,Sheet3!F157:F588) -> 0 | F169: -5.801314191e-07 | H169: =Sheet3!C157 -> 2034 | I169: =Sheet3!B157 -> 9 | J169: =Sheet3!E157 -> 167981367.4 | K169: =Sheet3!F157 -> 1524315.656 | L169: =Sheet3!G157 -> 839906.8368 | M169: =Sheet3!H157 -> 166457051.7 | N169: =Sheet3!A157 -> 2
B170: =IF(B169+1<=Sheet3!$C$2,B169+1,-9.99999999999999E+25) -> -1e+26 | C170: =SUMIF(Sheet3!C158:C589,B170,Sheet3!D158:D589) -> 0 | D170: =SUMIF(Sheet3!C158:C589,B170,Sheet3!G158:G589) -> 0 | E170: =SUMIF(Sheet3!C158:C589,B170,Sheet3!F158:F589) -> 0 | F170: -5.801314191e-07 | H170: =Sheet3!C158 -> 2034 | I170: =Sheet3!B158 -> 10 | J170: =Sheet3!E158 -> 166457051.7 | K170: =Sheet3!F158 -> 1531937.234 | L170: =Sheet3!G158 -> 832285.2585 | M170: =Sheet3!H158 -> 164925114.5 | N170: =Sheet3!A158 -> 2
B171: =IF(B170+1<=Sheet3!$C$2,B170+1,-9.99999999999999E+25) -> -1e+26 | C171: =SUMIF(Sheet3!C159:C590,B171,Sheet3!D159:D590) -> 0 | D171: =SUMIF(Sheet3!C159:C590,B171,Sheet3!G159:G590) -> 0 | E171: =SUMIF(Sheet3!C159:C590,B171,Sheet3!F159:F590) -> 0 | F171: -5.801314191e-07 | H171: =Sheet3!C159 -> 2034 | I171: =Sheet3!B159 -> 11 | J171: =Sheet3!E159 -> 164925114.5 | K171: =Sheet3!F159 -> 1539596.921 | L171: =Sheet3!G159 -> 824625.5723 | M171: =Sheet3!H159 -> 163385517.5 | N171: =Sheet3!A159 -> 2
B172: =IF(B171+1<=Sheet3!$C$2,B171+1,-9.99999999999999E+25) -> -1e+26 | C172: =SUMIF(Sheet3!C160:C591,B172,Sheet3!D160:D591) -> 0 | D172: =SUMIF(Sheet3!C160:C591,B172,Sheet3!G160:G591) -> 0 | E172: =SUMIF(Sheet3!C160:C591,B172,Sheet3!F160:F591) -> 0 | F172: -5.801314191e-07 | H172: =Sheet3!C160 -> 2034 | I172: =Sheet3!B160 -> 12 | J172: =Sheet3!E160 -> 163385517.5 | K172: =Sheet3!F160 -> 1547294.905 | L172: =Sheet3!G160 -> 816927.5877 | M172: =Sheet3!H160 -> 161838222.6 | N172: =Sheet3!A160 -> 2
B173: =IF(B172+1<=Sheet3!$C$2,B172+1,-9.99999999999999E+25) -> -1e+26 | C173: =SUMIF(Sheet3!C161:C592,B173,Sheet3!D161:D592) -> 0 | D173: =SUMIF(Sheet3!C161:C592,B173,Sheet3!G161:G592) -> 0 | E173: =SUMIF(Sheet3!C161:C592,B173,Sheet3!F161:F592) -> 0 | F173: -5.801314191e-07 | H173: =Sheet3!C161 -> 2035 | I173: =Sheet3!B161 -> 1 | J173: =Sheet3!E161 -> 161838222.6 | K173: =Sheet3!F161 -> 1555031.38 | L173: =Sheet3!G161 -> 809191.1132 | M173: =Sheet3!H161 -> 160283191.3 | N173: =Sheet3!A161 -> 2
B174: =IF(B173+1<=Sheet3!$C$2,B173+1,-9.99999999999999E+25) -> -1e+26 | C174: =SUMIF(Sheet3!C162:C593,B174,Sheet3!D162:D593) -> 0 | D174: =SUMIF(Sheet3!C162:C593,B174,Sheet3!G162:G593) -> 0 | E174: =SUMIF(Sheet3!C162:C593,B174,Sheet3!F162:F593) -> 0 | F174: -5.801314191e-07 | H174: =Sheet3!C162 -> 2035 | I174: =Sheet3!B162 -> 2 | J174: =Sheet3!E162 -> 160283191.3 | K174: =Sheet3!F162 -> 1562806.537 | L174: =Sheet3!G162 -> 801415.9563 | M174: =Sheet3!H162 -> 158720384.7 | N174: =Sheet3!A162 -> 2
B175: =IF(B174+1<=Sheet3!$C$2,B174+1,-9.99999999999999E+25) -> -1e+26 | C175: =SUMIF(Sheet3!C163:C594,B175,Sheet3!D163:D594) -> 0 | D175: =SUMIF(Sheet3!C163:C594,B175,Sheet3!G163:G594) -> 0 | E175: =SUMIF(Sheet3!C163:C594,B175,Sheet3!F163:F594) -> 0 | F175: -5.801314191e-07 | H175: =Sheet3!C163 -> 2035 | I175: =Sheet3!B163 -> 3 | J175: =Sheet3!E163 -> 158720384.7 | K175: =Sheet3!F163 -> 1570620.569 | L175: =Sheet3!G163 -> 793601.9236 | M175: =Sheet3!H163 -> 157149764.2 | N175: =Sheet3!A163 -> 2
B176: =IF(B175+1<=Sheet3!$C$2,B175+1,-9.99999999999999E+25) -> -1e+26 | C176: =SUMIF(Sheet3!C164:C595,B176,Sheet3!D164:D595) -> 0 | D176: =SUMIF(Sheet3!C164:C595,B176,Sheet3!G164:G595) -> 0 | E176: =SUMIF(Sheet3!C164:C595,B176,Sheet3!F164:F595) -> 0 | F176: -5.801314191e-07 | H176: =Sheet3!C164 -> 2035 | I176: =Sheet3!B164 -> 4 | J176: =Sheet3!E164 -> 157149764.2 | K176: =Sheet3!F164 -> 1578473.672 | L176: =Sheet3!G164 -> 785748.8208 | M176: =Sheet3!H164 -> 155571290.5 | N176: =Sheet3!A164 -> 2
B177: =IF(B176+1<=Sheet3!$C$2,B176+1,-9.99999999999999E+25) -> -1e+26 | C177: =SUMIF(Sheet3!C165:C596,B177,Sheet3!D165:D596) -> 0 | D177: =SUMIF(Sheet3!C165:C596,B177,Sheet3!G165:G596) -> 0 | E177: =SUMIF(Sheet3!C165:C596,B177,Sheet3!F165:F596) -> 0 | F177: -5.801314191e-07 | H177: =Sheet3!C165 -> 2035 | I177: =Sheet3!B165 -> 5 | J177: =Sheet3!E165 -> 155571290.5 | K177: =Sheet3!F165 -> 1586366.041 | L177: =Sheet3!G165 -> 777856.4524 | M177: =Sheet3!H165 -> 153984924.4 | N177: =Sheet3!A165 -> 2
B178: =IF(B177+1<=Sheet3!$C$2,B177+1,-9.99999999999999E+25) -> -1e+26 | C178: =SUMIF(Sheet3!C166:C597,B178,Sheet3!D166:D597) -> 0 | D178: =SUMIF(Sheet3!C166:C597,B178,Sheet3!G166:G597) -> 0 | E178: =SUMIF(Sheet3!C166:C597,B178,Sheet3!F166:F597) -> 0 | F178: -5.801314191e-07 | H178: =Sheet3!C166 -> 2035 | I178: =Sheet3!B166 -> 6 | J178: =Sheet3!E166 -> 153984924.4 | K178: =Sheet3!F166 -> 1594297.871 | L178: =Sheet3!G166 -> 769924.6222 | M178: =Sheet3!H166 -> 152390626.6 | N178: =Sheet3!A166 -> 2
B179: =IF(B178+1<=Sheet3!$C$2,B178+1,-9.99999999999999E+25) -> -1e+26 | C179: =SUMIF(Sheet3!C167:C598,B179,Sheet3!D167:D598) -> 0 | D179: =SUMIF(Sheet3!C167:C598,B179,Sheet3!G167:G598) -> 0 | E179: =SUMIF(Sheet3!C167:C598,B179,Sheet3!F167:F598) -> 0 | F179: -5.801314191e-07 | H179: =Sheet3!C167 -> 2035 | I179: =Sheet3!B167 -> 7 | J179: =Sheet3!E167 -> 152390626.6 | K179: =Sheet3!F167 -> 1602269.36 | L179: =Sheet3!G167 -> 761953.1328 | M179: =Sheet3!H167 -> 150788357.2 | N179: =Sheet3!A167 -> 2
B180: =IF(B179+1<=Sheet3!$C$2,B179+1,-9.99999999999999E+25) -> -1e+26 | C180: =SUMIF(Sheet3!C168:C599,B180,Sheet3!D168:D599) -> 0 | D180: =SUMIF(Sheet3!C168:C599,B180,Sheet3!G168:G599) -> 0 | E180: =SUMIF(Sheet3!C168:C599,B180,Sheet3!F168:F599) -> 0 | F180: -5.801314191e-07 | H180: =Sheet3!C168 -> 2035 | I180: =Sheet3!B168 -> 8 | J180: =Sheet3!E168 -> 150788357.2 | K180: =Sheet3!F168 -> 1610280.707 | L180: =Sheet3!G168 -> 753941.786 | M180: =Sheet3!H168 -> 149178076.5 | N180: =Sheet3!A168 -> 2
B181: =IF(B180+1<=Sheet3!$C$2,B180+1,-9.99999999999999E+25) -> -1e+26 | C181: =SUMIF(Sheet3!C169:C600,B181,Sheet3!D169:D600) -> 0 | D181: =SUMIF(Sheet3!C169:C600,B181,Sheet3!G169:G600) -> 0 | E181: =SUMIF(Sheet3!C169:C600,B181,Sheet3!F169:F600) -> 0 | F181: -5.801314191e-07 | H181: =Sheet3!C169 -> 2035 | I181: =Sheet3!B169 -> 9 | J181: =Sheet3!E169 -> 149178076.5 | K181: =Sheet3!F169 -> 1618332.11 | L181: =Sheet3!G169 -> 745890.3825 | M181: =Sheet3!H169 -> 147559744.4 | N181: =Sheet3!A169 -> 2
B182: =IF(B181+1<=Sheet3!$C$2,B181+1,-9.99999999999999E+25) -> -1e+26 | C182: =SUMIF(Sheet3!C170:C601,B182,Sheet3!D170:D601) -> 0 | D182: =SUMIF(Sheet3!C170:C601,B182,Sheet3!G170:G601) -> 0 | E182: =SUMIF(Sheet3!C170:C601,B182,Sheet3!F170:F601) -> 0 | F182: -5.801314191e-07 | H182: =Sheet3!C170 -> 2035 | I182: =Sheet3!B170 -> 10 | J182: =Sheet3!E170 -> 147559744.4 | K182: =Sheet3!F170 -> 1626423.771 | L182: =Sheet3!G170 -> 737798.722 | M182: =Sheet3!H170 -> 145933320.6 | N182: =Sheet3!A170 -> 2
B183: =IF(B182+1<=Sheet3!$C$2,B182+1,-9.99999999999999E+25) -> -1e+26 | C183: =SUMIF(Sheet3!C171:C602,B183,Sheet3!D171:D602) -> 0 | D183: =SUMIF(Sheet3!C171:C602,B183,Sheet3!G171:G602) -> 0 | E183: =SUMIF(Sheet3!C171:C602,B183,Sheet3!F171:F602) -> 0 | F183: -5.801314191e-07 | H183: =Sheet3!C171 -> 2035 | I183: =Sheet3!B171 -> 11 | J183: =Sheet3!E171 -> 145933320.6 | K183: =Sheet3!F171 -> 1634555.89 | L183: =Sheet3!G171 -> 729666.6031 | M183: =Sheet3!H171 -> 144298764.7 | N183: =Sheet3!A171 -> 2
B184: =IF(B183+1<=Sheet3!$C$2,B183+1,-9.99999999999999E+25) -> -1e+26 | C184: =SUMIF(Sheet3!C172:C603,B184,Sheet3!D172:D603) -> 0 | D184: =SUMIF(Sheet3!C172:C603,B184,Sheet3!G172:G603) -> 0 | E184: =SUMIF(Sheet3!C172:C603,B184,Sheet3!F172:F603) -> 0 | F184: -5.801314191e-07 | H184: =Sheet3!C172 -> 2035 | I184: =Sheet3!B172 -> 12 | J184: =Sheet3!E172 -> 144298764.7 | K184: =Sheet3!F172 -> 1642728.669 | L184: =Sheet3!G172 -> 721493.8237 | M184: =Sheet3!H172 -> 142656036.1 | N184: =Sheet3!A172 -> 2
B185: =IF(B184+1<=Sheet3!$C$2,B184+1,-9.99999999999999E+25) -> -1e+26 | C185: =SUMIF(Sheet3!C173:C604,B185,Sheet3!D173:D604) -> 0 | D185: =SUMIF(Sheet3!C173:C604,B185,Sheet3!G173:G604) -> 0 | E185: =SUMIF(Sheet3!C173:C604,B185,Sheet3!F173:F604) -> 0 | F185: -5.801314191e-07 | H185: =Sheet3!C173 -> 2036 | I185: =Sheet3!B173 -> 1 | J185: =Sheet3!E173 -> 142656036.1 | K185: =Sheet3!F173 -> 1650942.313 | L185: =Sheet3!G173 -> 713280.1803 | M185: =Sheet3!H173 -> 141005093.7 | N185: =Sheet3!A173 -> 2
B186: =IF(B185+1<=Sheet3!$C$2,B185+1,-9.99999999999999E+25) -> -1e+26 | C186: =SUMIF(Sheet3!C174:C605,B186,Sheet3!D174:D605) -> 0 | D186: =SUMIF(Sheet3!C174:C605,B186,Sheet3!G174:G605) -> 0 | E186: =SUMIF(Sheet3!C174:C605,B186,Sheet3!F174:F605) -> 0 | F186: -5.801314191e-07 | H186: =Sheet3!C174 -> 2036 | I186: =Sheet3!B174 -> 2 | J186: =Sheet3!E174 -> 141005093.7 | K186: =Sheet3!F174 -> 1659197.024 | L186: =Sheet3!G174 -> 705025.4687 | M186: =Sheet3!H174 -> 139345896.7 | N186: =Sheet3!A174 -> 2
B187: =IF(B186+1<=Sheet3!$C$2,B186+1,-9.99999999999999E+25) -> -1e+26 | C187: =SUMIF(Sheet3!C175:C606,B187,Sheet3!D175:D606) -> 0 | D187: =SUMIF(Sheet3!C175:C606,B187,Sheet3!G175:G606) -> 0 | E187: =SUMIF(Sheet3!C175:C606,B187,Sheet3!F175:F606) -> 0 | F187: -5.801314191e-07 | H187: =Sheet3!C175 -> 2036 | I187: =Sheet3!B175 -> 3 | J187: =Sheet3!E175 -> 139345896.7 | K187: =Sheet3!F175 -> 1667493.009 | L187: =Sheet3!G175 -> 696729.4836 | M187: =Sheet3!H175 -> 137678403.7 | N187: =Sheet3!A175 -> 2
B188: =IF(B187+1<=Sheet3!$C$2,B187+1,-9.99999999999999E+25) -> -1e+26 | C188: =SUMIF(Sheet3!C176:C607,B188,Sheet3!D176:D607) -> 0 | D188: =SUMIF(Sheet3!C176:C607,B188,Sheet3!G176:G607) -> 0 | E188: =SUMIF(Sheet3!C176:C607,B188,Sheet3!F176:F607) -> 0 | F188: -5.801314191e-07 | H188: =Sheet3!C176 -> 2036 | I188: =Sheet3!B176 -> 4 | J188: =Sheet3!E176 -> 137678403.7 | K188: =Sheet3!F176 -> 1675830.474 | L188: =Sheet3!G176 -> 688392.0186 | M188: =Sheet3!H176 -> 136002573.2 | N188: =Sheet3!A176 -> 2
B189: =IF(B188+1<=Sheet3!$C$2,B188+1,-9.99999999999999E+25) -> -1e+26 | C189: =SUMIF(Sheet3!C177:C608,B189,Sheet3!D177:D608) -> 0 | D189: =SUMIF(Sheet3!C177:C608,B189,Sheet3!G177:G608) -> 0 | E189: =SUMIF(Sheet3!C177:C608,B189,Sheet3!F177:F608) -> 0 | F189: -5.801314191e-07 | H189: =Sheet3!C177 -> 2036 | I189: =Sheet3!B177 -> 5 | J189: =Sheet3!E177 -> 136002573.2 | K189: =Sheet3!F177 -> 1684209.627 | L189: =Sheet3!G177 -> 680012.8662 | M189: =Sheet3!H177 -> 134318363.6 | N189: =Sheet3!A177 -> 2
B190: =IF(B189+1<=Sheet3!$C$2,B189+1,-9.99999999999999E+25) -> -1e+26 | C190: =SUMIF(Sheet3!C178:C609,B190,Sheet3!D178:D609) -> 0 | D190: =SUMIF(Sheet3!C178:C609,B190,Sheet3!G178:G609) -> 0 | E190: =SUMIF(Sheet3!C178:C609,B190,Sheet3!F178:F609) -> 0 | F190: -5.801314191e-07 | H190: =Sheet3!C178 -> 2036 | I190: =Sheet3!B178 -> 6 | J190: =Sheet3!E178 -> 134318363.6 | K190: =Sheet3!F178 -> 1692630.675 | L190: =Sheet3!G178 -> 671591.8181 | M190: =Sheet3!H178 -> 132625732.9 | N190: =Sheet3!A178 -> 2
B191: =IF(B190+1<=Sheet3!$C$2,B190+1,-9.99999999999999E+25) -> -1e+26 | C191: =SUMIF(Sheet3!C179:C610,B191,Sheet3!D179:D610) -> 0 | D191: =SUMIF(Sheet3!C179:C610,B191,Sheet3!G179:G610) -> 0 | E191: =SUMIF(Sheet3!C179:C610,B191,Sheet3!F179:F610) -> 0 | F191: -5.801314191e-07 | H191: =Sheet3!C179 -> 2036 | I191: =Sheet3!B179 -> 7 | J191: =Sheet3!E179 -> 132625732.9 | K191: =Sheet3!F179 -> 1701093.828 | L191: =Sheet3!G179 -> 663128.6647 | M191: =Sheet3!H179 -> 130924639.1 | N191: =Sheet3!A179 -> 2
B192: =IF(B191+1<=Sheet3!$C$2,B191+1,-9.99999999999999E+25) -> -1e+26 | C192: =SUMIF(Sheet3!C180:C611,B192,Sheet3!D180:D611) -> 0 | D192: =SUMIF(Sheet3!C180:C611,B192,Sheet3!G180:G611) -> 0 | E192: =SUMIF(Sheet3!C180:C611,B192,Sheet3!F180:F611) -> 0 | F192: -5.801314191e-07 | H192: =Sheet3!C180 -> 2036 | I192: =Sheet3!B180 -> 8 | J192: =Sheet3!E180 -> 130924639.1 | K192: =Sheet3!F180 -> 1709599.297 | L192: =Sheet3!G180 -> 654623.1956 | M192: =Sheet3!H180 -> 129215039.8 | N192: =Sheet3!A180 -> 2
B193: =IF(B192+1<=Sheet3!$C$2,B192+1,-9.99999999999999E+25) -> -1e+26 | C193: =SUMIF(Sheet3!C181:C612,B193,Sheet3!D181:D612) -> 0 | D193: =SUMIF(Sheet3!C181:C612,B193,Sheet3!G181:G612) -> 0 | E193: =SUMIF(Sheet3!C181:C612,B193,Sheet3!F181:F612) -> 0 | F193: -5.801314191e-07 | H193: =Sheet3!C181 -> 2036 | I193: =Sheet3!B181 -> 9 | J193: =Sheet3!E181 -> 129215039.8 | K193: =Sheet3!F181 -> 1718147.294 | L193: =Sheet3!G181 -> 646075.1991 | M193: =Sheet3!H181 -> 127496892.5 | N193: =Sheet3!A181 -> 2
B194: =IF(B193+1<=Sheet3!$C$2,B193+1,-9.99999999999999E+25) -> -1e+26 | C194: =SUMIF(Sheet3!C182:C613,B194,Sheet3!D182:D613) -> 0 | D194: =SUMIF(Sheet3!C182:C613,B194,Sheet3!G182:G613) -> 0 | E194: =SUMIF(Sheet3!C182:C613,B194,Sheet3!F182:F613) -> 0 | F194: -5.801314191e-07 | H194: =Sheet3!C182 -> 2036 | I194: =Sheet3!B182 -> 10 | J194: =Sheet3!E182 -> 127496892.5 | K194: =Sheet3!F182 -> 1726738.03 | L194: =Sheet3!G182 -> 637484.4626 | M194: =Sheet3!H182 -> 125770154.5 | N194: =Sheet3!A182 -> 2
B195: =IF(B194+1<=Sheet3!$C$2,B194+1,-9.99999999999999E+25) -> -1e+26 | C195: =SUMIF(Sheet3!C183:C614,B195,Sheet3!D183:D614) -> 0 | D195: =SUMIF(Sheet3!C183:C614,B195,Sheet3!G183:G614) -> 0 | E195: =SUMIF(Sheet3!C183:C614,B195,Sheet3!F183:F614) -> 0 | F195: -5.801314191e-07 | H195: =Sheet3!C183 -> 2036 | I195: =Sheet3!B183 -> 11 | J195: =Sheet3!E183 -> 125770154.5 | K195: =Sheet3!F183 -> 1735371.721 | L195: =Sheet3!G183 -> 628850.7724 | M195: =Sheet3!H183 -> 124034782.8 | N195: =Sheet3!A183 -> 2
B196: =IF(B195+1<=Sheet3!$C$2,B195+1,-9.99999999999999E+25) -> -1e+26 | C196: =SUMIF(Sheet3!C184:C615,B196,Sheet3!D184:D615) -> 0 | D196: =SUMIF(Sheet3!C184:C615,B196,Sheet3!G184:G615) -> 0 | E196: =SUMIF(Sheet3!C184:C615,B196,Sheet3!F184:F615) -> 0 | F196: -5.801314191e-07 | H196: =Sheet3!C184 -> 2036 | I196: =Sheet3!B184 -> 12 | J196: =Sheet3!E184 -> 124034782.8 | K196: =Sheet3!F184 -> 1744048.579 | L196: =Sheet3!G184 -> 620173.9138 | M196: =Sheet3!H184 -> 122290734.2 | N196: =Sheet3!A184 -> 2
B197: =IF(B196+1<=Sheet3!$C$2,B196+1,-9.99999999999999E+25) -> -1e+26 | C197: =SUMIF(Sheet3!C185:C616,B197,Sheet3!D185:D616) -> 0 | D197: =SUMIF(Sheet3!C185:C616,B197,Sheet3!G185:G616) -> 0 | E197: =SUMIF(Sheet3!C185:C616,B197,Sheet3!F185:F616) -> 0 | F197: -5.801314191e-07 | H197: =Sheet3!C185 -> 2037 | I197: =Sheet3!B185 -> 1 | J197: =Sheet3!E185 -> 122290734.2 | K197: =Sheet3!F185 -> 1752768.822 | L197: =Sheet3!G185 -> 611453.6709 | M197: =Sheet3!H185 -> 120537965.4 | N197: =Sheet3!A185 -> 2
B198: =IF(B197+1<=Sheet3!$C$2,B197+1,-9.99999999999999E+25) -> -1e+26 | C198: =SUMIF(Sheet3!C186:C617,B198,Sheet3!D186:D617) -> 0 | D198: =SUMIF(Sheet3!C186:C617,B198,Sheet3!G186:G617) -> 0 | E198: =SUMIF(Sheet3!C186:C617,B198,Sheet3!F186:F617) -> 0 | F198: -5.801314191e-07 | H198: =Sheet3!C186 -> 2037 | I198: =Sheet3!B186 -> 2 | J198: =Sheet3!E186 -> 120537965.4 | K198: =Sheet3!F186 -> 1761532.666 | L198: =Sheet3!G186 -> 602689.8268 | M198: =Sheet3!H186 -> 118776432.7 | N198: =Sheet3!A186 -> 2
B199: =IF(B198+1<=Sheet3!$C$2,B198+1,-9.99999999999999E+25) -> -1e+26 | C199: =SUMIF(Sheet3!C187:C618,B199,Sheet3!D187:D618) -> 0 | D199: =SUMIF(Sheet3!C187:C618,B199,Sheet3!G187:G618) -> 0 | E199: =SUMIF(Sheet3!C187:C618,B199,Sheet3!F187:F618) -> 0 | F199: -5.801314191e-07 | H199: =Sheet3!C187 -> 2037 | I199: =Sheet3!B187 -> 3 | J199: =Sheet3!E187 -> 118776432.7 | K199: =Sheet3!F187 -> 1770340.329 | L199: =Sheet3!G187 -> 593882.1635 | M199: =Sheet3!H187 -> 117006092.4 | N199: =Sheet3!A187 -> 2
B200: =IF(B199+1<=Sheet3!$C$2,B199+1,-9.99999999999999E+25) -> -1e+26 | C200: =SUMIF(Sheet3!C188:C619,B200,Sheet3!D188:D619) -> 0 | D200: =SUMIF(Sheet3!C188:C619,B200,Sheet3!G188:G619) -> 0 | E200: =SUMIF(Sheet3!C188:C619,B200,Sheet3!F188:F619) -> 0 | F200: -5.801314191e-07 | H200: =Sheet3!C188 -> 2037 | I200: =Sheet3!B188 -> 4 | J200: =Sheet3!E188 -> 117006092.4 | K200: =Sheet3!F188 -> 1779192.031 | L200: =Sheet3!G188 -> 585030.4619 | M200: =Sheet3!H188 -> 115226900.3 | N200: =Sheet3!A188 -> 2
B201: =IF(B200+1<=Sheet3!$C$2,B200+1,-9.99999999999999E+25) -> -1e+26 | C201: =SUMIF(Sheet3!C189:C620,B201,Sheet3!D189:D620) -> 0 | D201: =SUMIF(Sheet3!C189:C620,B201,Sheet3!G189:G620) -> 0 | E201: =SUMIF(Sheet3!C189:C620,B201,Sheet3!F189:F620) -> 0 | F201: -5.801314191e-07 | H201: =Sheet3!C189 -> 2037 | I201: =Sheet3!B189 -> 5 | J201: =Sheet3!E189 -> 115226900.3 | K201: =Sheet3!F189 -> 1788087.991 | L201: =Sheet3!G189 -> 576134.5017 | M201: =Sheet3!H189 -> 113438812.3 | N201: =Sheet3!A189 -> 2
B202: =IF(B201+1<=Sheet3!$C$2,B201+1,-9.99999999999999E+25) -> -1e+26 | C202: =SUMIF(Sheet3!C190:C621,B202,Sheet3!D190:D621) -> 0 | D202: =SUMIF(Sheet3!C190:C621,B202,Sheet3!G190:G621) -> 0 | E202: =SUMIF(Sheet3!C190:C621,B202,Sheet3!F190:F621) -> 0 | F202: -5.801314191e-07 | H202: =Sheet3!C190 -> 2037 | I202: =Sheet3!B190 -> 6 | J202: =Sheet3!E190 -> 113438812.3 | K202: =Sheet3!F190 -> 1797028.431 | L202: =Sheet3!G190 -> 567194.0617 | M202: =Sheet3!H190 -> 111641783.9 | N202: =Sheet3!A190 -> 2
B203: =IF(B202+1<=Sheet3!$C$2,B202+1,-9.99999999999999E+25) -> -1e+26 | C203: =SUMIF(Sheet3!C191:C622,B203,Sheet3!D191:D622) -> 0 | D203: =SUMIF(Sheet3!C191:C622,B203,Sheet3!G191:G622) -> 0 | E203: =SUMIF(Sheet3!C191:C622,B203,Sheet3!F191:F622) -> 0 | F203: -5.801314191e-07 | H203: =Sheet3!C191 -> 2037 | I203: =Sheet3!B191 -> 7 | J203: =Sheet3!E191 -> 111641783.9 | K203: =Sheet3!F191 -> 1806013.573 | L203: =Sheet3!G191 -> 558208.9196 | M203: =Sheet3!H191 -> 109835770.3 | N203: =Sheet3!A191 -> 2
B204: =IF(B203+1<=Sheet3!$C$2,B203+1,-9.99999999999999E+25) -> -1e+26 | C204: =SUMIF(Sheet3!C192:C623,B204,Sheet3!D192:D623) -> 0 | D204: =SUMIF(Sheet3!C192:C623,B204,Sheet3!G192:G623) -> 0 | E204: =SUMIF(Sheet3!C192:C623,B204,Sheet3!F192:F623) -> 0 | F204: -5.801314191e-07 | H204: =Sheet3!C192 -> 2037 | I204: =Sheet3!B192 -> 8 | J204: =Sheet3!E192 -> 109835770.3 | K204: =Sheet3!F192 -> 1815043.641 | L204: =Sheet3!G192 -> 549178.8517 | M204: =Sheet3!H192 -> 108020726.7 | N204: =Sheet3!A192 -> 2
B205: =IF(B204+1<=Sheet3!$C$2,B204+1,-9.99999999999999E+25) -> -1e+26 | C205: =SUMIF(Sheet3!C193:C624,B205,Sheet3!D193:D624) -> 0 | D205: =SUMIF(Sheet3!C193:C624,B205,Sheet3!G193:G624) -> 0 | E205: =SUMIF(Sheet3!C193:C624,B205,Sheet3!F193:F624) -> 0 | F205: -5.801314191e-07 | H205: =Sheet3!C193 -> 2037 | I205: =Sheet3!B193 -> 9 | J205: =Sheet3!E193 -> 108020726.7 | K205: =Sheet3!F193 -> 1824118.859 | L205: =Sheet3!G193 -> 540103.6335 | M205: =Sheet3!H193 -> 106196607.8 | N205: =Sheet3!A193 -> 2
B206: =IF(B205+1<=Sheet3!$C$2,B205+1,-9.99999999999999E+25) -> -1e+26 | C206: =SUMIF(Sheet3!C194:C625,B206,Sheet3!D194:D625) -> 0 | D206: =SUMIF(Sheet3!C194:C625,B206,Sheet3!G194:G625) -> 0 | E206: =SUMIF(Sheet3!C194:C625,B206,Sheet3!F194:F625) -> 0 | F206: -5.801314191e-07 | H206: =Sheet3!C194 -> 2037 | I206: =Sheet3!B194 -> 10 | J206: =Sheet3!E194 -> 106196607.8 | K206: =Sheet3!F194 -> 1833239.454 | L206: =Sheet3!G194 -> 530983.0392 | M206: =Sheet3!H194 -> 104363368.4 | N206: =Sheet3!A194 -> 2
B207: =IF(B206+1<=Sheet3!$C$2,B206+1,-9.99999999999999E+25) -> -1e+26 | C207: =SUMIF(Sheet3!C195:C626,B207,Sheet3!D195:D626) -> 0 | D207: =SUMIF(Sheet3!C195:C626,B207,Sheet3!G195:G626) -> 0 | E207: =SUMIF(Sheet3!C195:C626,B207,Sheet3!F195:F626) -> 0 | F207: -5.801314191e-07 | H207: =Sheet3!C195 -> 2037 | I207: =Sheet3!B195 -> 11 | J207: =Sheet3!E195 -> 104363368.4 | K207: =Sheet3!F195 -> 1842405.651 | L207: =Sheet3!G195 -> 521816.842 | M207: =Sheet3!H195 -> 102520962.7 | N207: =Sheet3!A195 -> 2
B208: =IF(B207+1<=Sheet3!$C$2,B207+1,-9.99999999999999E+25) -> -1e+26 | C208: =SUMIF(Sheet3!C196:C627,B208,Sheet3!D196:D627) -> 0 | D208: =SUMIF(Sheet3!C196:C627,B208,Sheet3!G196:G627) -> 0 | E208: =SUMIF(Sheet3!C196:C627,B208,Sheet3!F196:F627) -> 0 | F208: -5.801314191e-07 | H208: =Sheet3!C196 -> 2037 | I208: =Sheet3!B196 -> 12 | J208: =Sheet3!E196 -> 102520962.7 | K208: =Sheet3!F196 -> 1851617.679 | L208: =Sheet3!G196 -> 512604.8137 | M208: =Sheet3!H196 -> 100669345.1 | N208: =Sheet3!A196 -> 2
... 1187 more rows

Sheet Sheet3 (hidden)
B1: =Vstup!C6 -> 330000000 | C1: =Vstup!D6 -> 0.06 | D1: =Vstup!E6 -> 20 | E1: =Vstup!F6 -> 2022-01-01 | F1: =Vstup!E15 -> 2364222.493
C2: =C3+D1 -> 2042 | D2: =IF(D3>1,C3+D1,C3+D1-1) -> 2041
B3: =E1 -> 2022-01-01 | C3: =YEAR(B3) -> 2022 | D3: =MONTH(B3) -> 1 | E3: =DAY(B3) -> 1
B4: MESIC | C4: ROK | D4: SPLATKA | E4: ZBYVA0 | F4: UMOR | G4: UROK | H4: ZBYVA1
A5: =IF(B5=$D$3,1,IF(B5>$D$3,2,0)) -> 1 | B5: 1 | C5: =C3 -> 2022 | D5: =IF(B5>=$D$3,$F$1,0) -> 2364222.493 | E5: =IF(A5>0,IF(A5=1,$B$1,H4),0) -> 330000000 | F5: =IF(A5>0,D5-G5,0) -> 714222.493 | G5: =IF(A5>0,E5*$C$1/12,0) -> 1650000 | H5: =E5-F5 -> 329285777.5
A6: =IF(B6=$D$3,1,IF(B6>$D$3,2,0)) -> 2 | B6: 2 | C6: =C5 -> 2022 | D6: =IF(B6>=$D$3,$F$1,0) -> 2364222.493 | E6: 329285777.5 | F6: 717793.6054 | G6: 1646428.888 | H6: 328567983.9
A7: 2 | B7: 3 | C7: =C6 -> 2022 | D7: 2364222.493 | E7: 328567983.9 | F7: 721382.5735 | G7: 1642839.92 | H7: 327846601.3
A8: 2 | B8: 4 | C8: 2022 | D8: 2364222.493 | E8: 327846601.3 | F8: 724989.4863 | G8: 1639233.007 | H8: 327121611.8
A9: 2 | B9: 5 | C9: 2022 | D9: 2364222.493 | E9: 327121611.8 | F9: 728614.4338 | G9: 1635608.059 | H9: 326392997.4
A10: 2 | B10: 6 | C10: 2022 | D10: 2364222.493 | E10: 326392997.4 | F10: 732257.5059 | G10: 1631964.987 | H10: 325660739.9
A11: 2 | B11: 7 | C11: 2022 | D11: 2364222.493 | E11: 325660739.9 | F11: 735918.7935 | G11: 1628303.7 | H11: 324924821.1
A12: 2 | B12: 8 | C12: 2022 | D12: 2364222.493 | E12: 324924821.1 | F12: 739598.3874 | G12: 1624624.106 | H12: 324185222.7
A13: 2 | B13: 9 | C13: 2022 | D13: 2364222.493 | E13: 324185222.7 | F13: 743296.3794 | G13: 1620926.114 | H13: 323441926.3
A14: 2 | B14: 10 | C14: 2022 | D14: 2364222.493 | E14: 323441926.3 | F14: 747012.8613 | G14: 1617209.632 | H14: 322694913.5
A15: 2 | B15: 11 | C15: 2022 | D15: 2364222.493 | E15: 322694913.5 | F15: 750747.9256 | G15: 1613474.567 | H15: 321944165.6
A16: 2 | B16: 12 | C16: 2022 | D16: 2364222.493 | E16: 321944165.6 | F16: 754501.6652 | G16: 1609720.828 | H16: 321189663.9
A17: =IF(C17<=$C$2,IF(C17=$C$2,IF(B17<($D$3-1),2,IF(B17=($D$3-1),3,4)),2),4) -> 2 | B17: 1 | C17: =C16+1 -> 2023 | D17: =IF(C17<=$C$2,IF(C17=$C$2,IF(B17<$D$3,$F$1,0),$F$1),0) -> 2364222.493 | E17: 321189663.9 | F17: 758274.1735 | G17: 1605948.319 | H17: 320431389.7
A18: 2 | B18: 2 | C18: =C17 -> 2023 | D18: =IF(C18<=$C$2,IF(C18=$C$2,IF(B18<$D$3,$F$1,0),$F$1),0) -> 2364222.493 | E18: 320431389.7 | F18: 762065.5444 | G18: 1602156.949 | H18: 319669324.2
A19: 2 | B19: 3 | C19: =C18 -> 2023 | D19: =IF(C19<=$C$2,IF(C19=$C$2,IF(B19<$D$3,$F$1,0),$F$1),0) -> 2364222.493 | E19: 319669324.2 | F19: 765875.8721 | G19: 1598346.621 | H19: 318903448.3
A20: 2 | B20: 4 | C20: 2023 | D20: =IF(C20<=$C$2,IF(C20=$C$2,IF(B20<$D$3,$F$1,0),$F$1),0) -> 2364222.493 | E20: 318903448.3 | F20: 769705.2515 | G20: 1594517.241 | H20: 318133743
A21: 2 | B21: 5 | C21: 2023 | D21: =IF(C21<=$C$2,IF(C21=$C$2,IF(B21<$D$3,$F$1,0),$F$1),0) -> 2364222.493 | E21: 318133743 | F21: 773553.7777 | G21: 1590668.715 | H21: 317360189.3
A22: 2 | B22: 6 | C22: 2023 | D22: =IF(C22<=$C$2,IF(C22=$C$2,IF(B22<$D$3,$F$1,0),$F$1),0) -> 2364222.493 | E22: =IF(A22>0,IF(A22=1,$B$1,H21),0) -> 317360189.3 | F22: =IF(A22>0,D22-G22,0) -> 777421.5466 | G22: =IF(A22>0,E22*$C$1/12,0) -> 1586800.946 | H22: =E22-F22 -> 316582767.7
A23: 2 | B23: 7 | C23: 2023 | D23: 2364222.493 | E23: 316582767.7 | F23: 781308.6544 | G23: 1582913.839 | H23: 315801459.1
A24: 2 | B24: 8 | C24: 2023 | D24: 2364222.493 | E24: 315801459.1 | F24: 785215.1976 | G24: 1579007.295 | H24: 315016243.9
A25: 2 | B25: 9 | C25: 2023 | D25: 2364222.493 | E25: 315016243.9 | F25: 789141.2736 | G25: 1575081.219 | H25: 314227102.6
A26: 2 | B26: 10 | C26: 2023 | D26: 2364222.493 | E26: 314227102.6 | F26: 793086.98 | G26: 1571135.513 | H26: 313434015.6
A27: 2 | B27: 11 | C27: 2023 | D27: 2364222.493 | E27: 313434015.6 | F27: 797052.4149 | G27: 1567170.078 | H27: 312636963.2
A28: 2 | B28: 12 | C28: 2023 | D28: 2364222.493 | E28: 312636963.2 | F28: 801037.677 | G28: 1563184.816 | H28: 311835925.5
A29: 2 | B29: 1 | C29: =C28+1 -> 2024 | D29: 2364222.493 | E29: 311835925.5 | F29: 805042.8653 | G29: 1559179.628 | H29: 311030882.7
A30: 2 | B30: 2 | C30: =C29 -> 2024 | D30: 2364222.493 | E30: 311030882.7 | F30: 809068.0797 | G30: 1555154.413 | H30: 310221814.6
A31: 2 | B31: 3 | C31: =C30 -> 2024 | D31: 2364222.493 | E31: 310221814.6 | F31: 813113.4201 | G31: 1551109.073 | H31: 309408701.2
A32: 2 | B32: 4 | C32: 2024 | D32: 2364222.493 | E32: 309408701.2 | F32: 817178.9872 | G32: 1547043.506 | H32: 308591522.2
A33: 2 | B33: 5 | C33: 2024 | D33: 2364222.493 | E33: 308591522.2 | F33: 821264.8821 | G33: 1542957.611 | H33: 307770257.3
A34: 2 | B34: 6 | C34: 2024 | D34: 2364222.493 | E34: 307770257.3 | F34: 825371.2065 | G34: 1538851.286 | H34: 306944886.1
A35: 2 | B35: 7 | C35: 2024 | D35: 2364222.493 | E35: 306944886.1 | F35: 829498.0626 | G35: 1534724.43 | H35: 306115388
A36: 2 | B36: 8 | C36: 2024 | D36: 2364222.493 | E36: 306115388 | F36: 833645.5529 | G36: 1530576.94 | H36: 305281742.5
A37: 2 | B37: 9 | C37: 2024 | D37: 2364222.493 | E37: 305281742.5 | F37: 837813.7806 | G37: 1526408.712 | H37: 304443928.7
A38: 2 | B38: 10 | C38: 2024 | D38: 2364222.493 | E38: 304443928.7 | F38: 842002.8495 | G38: 1522219.643 | H38: 303601925.8
A39: 2 | B39: 11 | C39: 2024 | D39: 2364222.493 | E39: 303601925.8 | F39: 846212.8638 | G39: 1518009.629 | H39: 302755713
A40: 2 | B40: 12 | C40: 2024 | D40: 2364222.493 | E40: 302755713 | F40: 850443.9281 | G40: 1513778.565 | H40: 301905269
A41: 2 | B41: 1 | C41: =C40+1 -> 2025 | D41: 2364222.493 | E41: 301905269 | F41: 854696.1477 | G41: 1509526.345 | H41: 301050572.9
A42: 2 | B42: 2 | C42: =C41 -> 2025 | D42: 2364222.493 | E42: 301050572.9 | F42: 858969.6285 | G42: 1505252.865 | H42: 300191603.3
A43: 2 | B43: 3 | C43: =C42 -> 2025 | D43: 2364222.493 | E43: 300191603.3 | F43: 863264.4766 | G43: 1500958.016 | H43: 299328338.8
A44: 2 | B44: 4 | C44: 2025 | D44: 2364222.493 | E44: 299328338.8 | F44: 867580.799 | G44: 1496641.694 | H44: 298460758
A45: 2 | B45: 5 | C45: 2025 | D45: 2364222.493 | E45: 298460758 | F45: 871918.703 | G45: 1492303.79 | H45: 297588839.3
A46: 2 | B46: 6 | C46: 2025 | D46: 2364222.493 | E46: 297588839.3 | F46: 876278.2965 | G46: 1487944.196 | H46: 296712561
A47: 2 | B47: 7 | C47: 2025 | D47: 2364222.493 | E47: 296712561 | F47: 880659.688 | G47: 1483562.805 | H47: 295831901.3
A48: 2 | B48: 8 | C48: 2025 | D48: 2364222.493 | E48: 295831901.3 | F48: 885062.9864 | G48: 1479159.507 | H48: 294946838.3
A49: 2 | B49: 9 | C49: 2025 | D49: 2364222.493 | E49: 294946838.3 | F49: 889488.3014 | G49: 1474734.192 | H49: 294057350
A50: 2 | B50: 10 | C50: 2025 | D50: 2364222.493 | E50: 294057350 | F50: 893935.7429 | G50: 1470286.75 | H50: 293163414.3
A51: 2 | B51: 11 | C51: 2025 | D51: 2364222.493 | E51: 293163414.3 | F51: 898405.4216 | G51: 1465817.071 | H51: 292265008.9
A52: 2 | B52: 12 | C52: 2025 | D52: 2364222.493 | E52: 292265008.9 | F52: 902897.4487 | G52: 1461325.044 | H52: 291362111.4
A53: 2 | B53: 1 | C53: =C52+1 -> 2026 | D53: 2364222.493 | E53: 291362111.4 | F53: 907411.9359 | G53: 1456810.557 | H53: 290454699.5
A54: 2 | B54: 2 | C54: =C53 -> 2026 | D54: 2364222.493 | E54: 290454699.5 | F54: 911948.9956 | G54: 1452273.497 | H54: 289542750.5
A55: 2 | B55: 3 | C55: =C54 -> 2026 | D55: 2364222.493 | E55: 289542750.5 | F55: 916508.7406 | G55: 1447713.752 | H55: 288626241.7
A56: 2 | B56: 4 | C56: 2026 | D56: 2364222.493 | E56: 288626241.7 | F56: 921091.2843 | G56: 1443131.209 | H56: 287705150.5
A57: 2 | B57: 5 | C57: 2026 | D57: 2364222.493 | E57: 287705150.5 | F57: 925696.7407 | G57: 1438525.752 | H57: 286779453.7
A58: 2 | B58: 6 | C58: 2026 | D58: 2364222.493 | E58: 286779453.7 | F58: 930325.2244 | G58: 1433897.269 | H58: 285849128.5
A59: 2 | B59: 7 | C59: 2026 | D59: 2364222.493 | E59: 285849128.5 | F59: 934976.8505 | G59: 1429245.642 | H59: 284914151.6
A60: 2 | B60: 8 | C60: 2026 | D60: 2364222.493 | E60: 284914151.6 | F60: 939651.7348 | G60: 1424570.758 | H60: 283974499.9
A61: 2 | B61: 9 | C61: 2026 | D61: 2364222.493 | E61: 283974499.9 | F61: 944349.9935 | G61: 1419872.5 | H61: 283030149.9
A62: 2 | B62: 10 | C62: 2026 | D62: 2364222.493 | E62: 283030149.9 | F62: 949071.7434 | G62: 1415150.75 | H62: 282081078.2
A63: 2 | B63: 11 | C63: 2026 | D63: 2364222.493 | E63: 282081078.2 | F63: 953817.1022 | G63: 1410405.391 | H63: 281127261.1
A64: 2 | B64: 12 | C64: 2026 | D64: 2364222.493 | E64: 281127261.1 | F64: 958586.1877 | G64: 1405636.305 | H64: 280168674.9
A65: 2 | B65: 1 | C65: =C64+1 -> 2027 | D65: 2364222.493 | E65: 280168674.9 | F65: 963379.1186 | G65: 1400843.374 | H65: 279205295.8
A66: 2 | B66: 2 | C66: =C65 -> 2027 | D66: 2364222.493 | E66: 279205295.8 | F66: 968196.0142 | G66: 1396026.479 | H66: 278237099.7
A67: 2 | B67: 3 | C67: =C66 -> 2027 | D67: 2364222.493 | E67: 278237099.7 | F67: 973036.9943 | G67: 1391185.499 | H67: 277264062.7
A68: 2 | B68: 4 | C68: 2027 | D68: 2364222.493 | E68: 277264062.7 | F68: 977902.1792 | G68: 1386320.314 | H68: 276286160.6
A69: 2 | B69: 5 | C69: 2027 | D69: 2364222.493 | E69: 276286160.6 | F69: 982791.6901 | G69: 1381430.803 | H69: 275303368.9
A70: 2 | B70: 6 | C70: 2027 | D70: 2364222.493 | E70: 275303368.9 | F70: 987705.6486 | G70: 1376516.844 | H70: 274315663.2
A71: 2 | B71: 7 | C71: 2027 | D71: 2364222.493 | E71: 274315663.2 | F71: 992644.1768 | G71: 1371578.316 | H71: 273323019.1
A72: 2 | B72: 8 | C72: 2027 | D72: 2364222.493 | E72: 273323019.1 | F72: 997607.3977 | G72: 1366615.095 | H72: 272325411.7
A73: 2 | B73: 9 | C73: 2027 | D73: 2364222.493 | E73: 272325411.7 | F73: 1002595.435 | G73: 1361627.058 | H73: 271322816.2
A74: 2 | B74: 10 | C74: 2027 | D74: 2364222.493 | E74: 271322816.2 | F74: 1007608.412 | G74: 1356614.081 | H74: 270315207.8
A75: 2 | B75: 11 | C75: 2027 | D75: 2364222.493 | E75: 270315207.8 | F75: 1012646.454 | G75: 1351576.039 | H75: 269302561.4
A76: 2 | B76: 12 | C76: 2027 | D76: 2364222.493 | E76: 269302561.4 | F76: 1017709.686 | G76: 1346512.807 | H76: 268284851.7
A77: 2 | B77: 1 | C77: =C76+1 -> 2028 | D77: 2364222.493 | E77: 268284851.7 | F77: 1022798.235 | G77: 1341424.258 | H77: 267262053.4
A78: 2 | B78: 2 | C78: =C77 -> 2028 | D78: 2364222.493 | E78: 267262053.4 | F78: 1027912.226 | G78: 1336310.267 | H78: 266234141.2
A79: 2 | B79: 3 | C79: =C78 -> 2028 | D79: 2364222.493 | E79: 266234141.2 | F79: 1033051.787 | G79: 1331170.706 | H79: 265201089.4
A80: 2 | B80: 4 | C80: 2028 | D80: 2364222.493 | E80: 265201089.4 | F80: 1038217.046 | G80: 1326005.447 | H80: 264162872.4
A81: =IF(C81<=$C$2,IF(C81=$C$2,IF(B81<($D$3-1),2,IF(B81=($D$3-1),3,4)),2),4) -> 2 | B81: 5 | C81: 2028 | D81: 2364222.493 | E81: 264162872.4 | F81: 1043408.131 | G81: 1320814.362 | H81: 263119464.2
A82: 2 | B82: 6 | C82: 2028 | D82: 2364222.493 | E82: 263119464.2 | F82: 1048625.172 | G82: 1315597.321 | H82: 262070839.1
A83: 2 | B83: 7 | C83: 2028 | D83: 2364222.493 | E83: 262070839.1 | F83: 1053868.298 | G83: 1310354.195 | H83: 261016970.8
A84: 2 | B84: 8 | C84: 2028 | D84: 2364222.493 | E84: 261016970.8 | F84: 1059137.639 | G84: 1305084.854 | H84: 259957833.1
A85: 2 | B85: 9 | C85: 2028 | D85: 2364222.493 | E85: 259957833.1 | F85: 1064433.327 | G85: 1299789.166 | H85: 258893399.8
A86: 2 | B86: 10 | C86: 2028 | D86: =IF(C86<=$C$2,IF(C86=$C$2,IF(B86<$D$3,$F$1,0),$F$1),0) -> 2364222.493 | E86: =IF(A86>0,IF(A86=1,$B$1,H85),0) -> 258893399.8 | F86: =IF(A86>0,D86-G86,0) -> 1069755.494 | G86: =IF(A86>0,E86*$C$1/12,0) -> 1294466.999 | H86: =E86-F86 -> 257823644.3
A87: 2 | B87: 11 | C87: 2028 | D87: 2364222.493 | E87: 257823644.3 | F87: 1075104.271 | G87: 1289118.222 | H87: 256748540
A88: 2 | B88: 12 | C88: 2028 | D88: 2364222.493 | E88: 256748540 | F88: 1080479.793 | G88: 1283742.7 | H88: 255668060.2
A89: 2 | B89: 1 | C89: =C88+1 -> 2029 | D89: 2364222.493 | E89: 255668060.2 | F89: 1085882.192 | G89: 1278340.301 | H89: 254582178.1
A90: 2 | B90: 2 | C90: =C89 -> 2029 | D90: 2364222.493 | E90: 254582178.1 | F90: 1091311.603 | G90: 1272910.89 | H90: 253490866.5
A91: 2 | B91: 3 | C91: =C90 -> 2029 | D91: 2364222.493 | E91: 253490866.5 | F91: 1096768.161 | G91: 1267454.332 | H91: 252394098.3
A92: 2 | B92: 4 | C92: 2029 | D92: 2364222.493 | E92: 252394098.3 | F92: 1102252.002 | G92: 1261970.491 | H92: 251291846.3
A93: 2 | B93: 5 | C93: 2029 | D93: 2364222.493 | E93: 251291846.3 | F93: 1107763.262 | G93: 1256459.231 | H93: 250184083
A94: 2 | B94: 6 | C94: 2029 | D94: 2364222.493 | E94: 250184083 | F94: 1113302.078 | G94: 1250920.415 | H94: 249070781
A95: 2 | B95: 7 | C95: 2029 | D95: 2364222.493 | E95: 249070781 | F95: 1118868.588 | G95: 1245353.905 | H95: 247951912.4
A96: 2 | B96: 8 | C96: 2029 | D96: 2364222.493 | E96: 247951912.4 | F96: 1124462.931 | G96: 1239759.562 | H96: 246827449.4
A97: 2 | B97: 9 | C97: 2029 | D97: 2364222.493 | E97: 246827449.4 | F97: 1130085.246 | G97: 1234137.247 | H97: 245697364.2
A98: 2 | B98: 10 | C98: 2029 | D98: 2364222.493 | E98: 245697364.2 | F98: 1135735.672 | G98: 1228486.821 | H98: 244561628.5
A99: 2 | B99: 11 | C99: 2029 | D99: 2364222.493 | E99: 244561628.5 | F99: 1141414.35 | G99: 1222808.143 | H99: 243420214.2
A100: 2 | B100: 12 | C100: 2029 | D100: 2364222.493 | E100: 243420214.2 | F100: 1147121.422 | G100: 1217101.071 | H100: 242273092.7
A101: 2 | B101: 1 | C101: =C100+1 -> 2030 | D101: 2364222.493 | E101: 242273092.7 | F101: 1152857.029 | G101: 1211365.464 | H101: 241120235.7
A102: 2 | B102: 2 | C102: =C101 -> 2030 | D102: 2364222.493 | E102: 241120235.7 | F102: 1158621.314 | G102: 1205601.179 | H102: 239961614.4
A103: 2 | B103: 3 | C103: =C102 -> 2030 | D103: 2364222.493 | E103: 239961614.4 | F103: 1164414.421 | G103: 1199808.072 | H103: 238797200
A104: 2 | B104: 4 | C104: 2030 | D104: 2364222.493 | E104: 238797200 | F104: 1170236.493 | G104: 1193986 | H104: 237626963.5
A105: 2 | B105: 5 | C105: 2030 | D105: 2364222.493 | E105: 237626963.5 | F105: 1176087.676 | G105: 1188134.817 | H105: 236450875.8
A106: 2 | B106: 6 | C106: 2030 | D106: 2364222.493 | E106: 236450875.8 | F106: 1181968.114 | G106: 1182254.379 | H106: 235268907.7
A107: 2 | B107: 7 | C107: 2030 | D107: 2364222.493 | E107: 235268907.7 | F107: 1187877.954 | G107: 1176344.538 | H107: 234081029.7
A108: 2 | B108: 8 | C108: 2030 | D108: 2364222.493 | E108: 234081029.7 | F108: 1193817.344 | G108: 1170405.149 | H108: 232887212.4
A109: 2 | B109: 9 | C109: 2030 | D109: 2364222.493 | E109: 232887212.4 | F109: 1199786.431 | G109: 1164436.062 | H109: 231687426
A110: 2 | B110: 10 | C110: 2030 | D110: 2364222.493 | E110: 231687426 | F110: 1205785.363 | G110: 1158437.13 | H110: 230481640.6
A111: 2 | B111: 11 | C111: 2030 | D111: 2364222.493 | E111: 230481640.6 | F111: 1211814.29 | G111: 1152408.203 | H111: 229269826.3
A112: 2 | B112: 12 | C112: 2030 | D112: 2364222.493 | E112: 229269826.3 | F112: 1217873.361 | G112: 1146349.132 | H112: 228051953
A113: 2 | B113: 1 | C113: =C112+1 -> 2031 | D113: 2364222.493 | E113: 228051953 | F113: 1223962.728 | G113: 1140259.765 | H113: 226827990.2
A114: 2 | B114: 2 | C114: =C113 -> 2031 | D114: 2364222.493 | E114: 226827990.2 | F114: 1230082.542 | G114: 1134139.951 | H114: 225597907.7
A115: 2 | B115: 3 | C115: =C114 -> 2031 | D115: 2364222.493 | E115: 225597907.7 | F115: 1236232.955 | G115: 1127989.538 | H115: 224361674.7
A116: 2 | B116: 4 | C116: 2031 | D116: 2364222.493 | E116: 224361674.7 | F116: 1242414.119 | G116: 1121808.374 | H116: 223119260.6
A117: 2 | B117: 5 | C117: 2031 | D117: 2364222.493 | E117: 223119260.6 | F117: 1248626.19 | G117: 1115596.303 | H117: 221870634.4
A118: 2 | B118: 6 | C118: 2031 | D118: 2364222.493 | E118: 221870634.4 | F118: 1254869.321 | G118: 1109353.172 | H118: 220615765.1
A119: 2 | B119: 7 | C119: 2031 | D119: 2364222.493 | E119: 220615765.1 | F119: 1261143.667 | G119: 1103078.825 | H119: 219354621.4
A120: 2 | B120: 8 | C120: 2031 | D120: 2364222.493 | E120: 219354621.4 | F120: 1267449.386 | G120: 1096773.107 | H120: 218087172
A121: 2 | B121: 9 | C121: 2031 | D121: 2364222.493 | E121: 218087172 | F121: 1273786.633 | G121: 1090435.86 | H121: 216813385.4
A122: 2 | B122: 10 | C122: 2031 | D122: 2364222.493 | E122: 216813385.4 | F122: 1280155.566 | G122: 1084066.927 | H122: 215533229.8
A123: 2 | B123: 11 | C123: 2031 | D123: 2364222.493 | E123: 215533229.8 | F123: 1286556.344 | G123: 1077666.149 | H123: 214246673.5
A124: 2 | B124: 12 | C124: 2031 | D124: 2364222.493 | E124: 214246673.5 | F124: 1292989.125 | G124: 1071233.368 | H124: 212953684.4
A125: 2 | B125: 1 | C125: =C124+1 -> 2032 | D125: 2364222.493 | E125: 212953684.4 | F125: 1299454.071 | G125: 1064768.422 | H125: 211654230.3
A126: 2 | B126: 2 | C126: =C125 -> 2032 | D126: 2364222.493 | E126: 211654230.3 | F126: 1305951.341 | G126: 1058271.152 | H126: 210348279
A127: 2 | B127: 3 | C127: =C126 -> 2032 | D127: 2364222.493 | E127: 210348279 | F127: 1312481.098 | G127: 1051741.395 | H127: 209035797.9
A128: 2 | B128: 4 | C128: 2032 | D128: 2364222.493 | E128: 209035797.9 | F128: 1319043.504 | G128: 1045178.989 | H128: 207716754.4
A129: 2 | B129: 5 | C129: 2032 | D129: 2364222.493 | E129: 207716754.4 | F129: 1325638.721 | G129: 1038583.772 | H129: 206391115.6
A130: 2 | B130: 6 | C130: 2032 | D130: 2364222.493 | E130: 206391115.6 | F130: 1332266.915 | G130: 1031955.578 | H130: 205058848.7
A131: 2 | B131: 7 | C131: 2032 | D131: 2364222.493 | E131: 205058848.7 | F131: 1338928.249 | G131: 1025294.244 | H131: 203719920.5
A132: 2 | B132: 8 | C132: 2032 | D132: 2364222.493 | E132: 203719920.5 | F132: 1345622.891 | G132: 1018599.602 | H132: 202374297.6
A133: 2 | B133: 9 | C133: 2032 | D133: 2364222.493 | E133: 202374297.6 | F133: 1352351.005 | G133: 1011871.488 | H133: 201021946.6
A134: 2 | B134: 10 | C134: 2032 | D134: 2364222.493 | E134: 201021946.6 | F134: 1359112.76 | G134: 1005109.733 | H134: 199662833.8
A135: 2 | B135: 11 | C135: 2032 | D135: 2364222.493 | E135: 199662833.8 | F135: 1365908.324 | G135: 998314.1691 | H135: 198296925.5
A136: 2 | B136: 12 | C136: 2032 | D136: 2364222.493 | E136: 198296925.5 | F136: 1372737.865 | G136: 991484.6275 | H136: 196924187.6
A137: 2 | B137: 1 | C137: =C136+1 -> 2033 | D137: 2364222.493 | E137: 196924187.6 | F137: 1379601.555 | G137: 984620.9382 | H137: 195544586.1
A138: 2 | B138: 2 | C138: =C137 -> 2033 | D138: 2364222.493 | E138: 195544586.1 | F138: 1386499.563 | G138: 977722.9304 | H138: 194158086.5
A139: 2 | B139: 3 | C139: =C138 -> 2033 | D139: 2364222.493 | E139: 194158086.5 | F139: 1393432.06 | G139: 970790.4326 | H139: 192764654.5
A140: 2 | B140: 4 | C140: 2033 | D140: 2364222.493 | E140: 192764654.5 | F140: 1400399.221 | G140: 963823.2723 | H140: 191364255.2
A141: 2 | B141: 5 | C141: 2033 | D141: 2364222.493 | E141: 191364255.2 | F141: 1407401.217 | G141: 956821.2762 | H141: 189956854
A142: 2 | B142: 6 | C142: 2033 | D142: 2364222.493 | E142: 189956854 | F142: 1414438.223 | G142: 949784.2701 | H142: 188542415.8
A143: 2 | B143: 7 | C143: 2033 | D143: 2364222.493 | E143: 188542415.8 | F143: 1421510.414 | G143: 942712.079 | H143: 187120905.4
A144: 2 | B144: 8 | C144: 2033 | D144: 2364222.493 | E144: 187120905.4 | F144: 1428617.966 | G144: 935604.5269 | H144: 185692287.4
A145: =IF(C145<=$C$2,IF(C145=$C$2,IF(B145<($D$3-1),2,IF(B145=($D$3-1),3,4)),2),4) -> 2 | B145: 9 | C145: 2033 | D145: 2364222.493 | E145: 185692287.4 | F145: 1435761.056 | G145: 928461.4371 | H145: 184256526.4
A146: 2 | B146: 10 | C146: 2033 | D146: 2364222.493 | E146: 184256526.4 | F146: 1442939.861 | G146: 921282.6318 | H146: 182813586.5
A147: 2 | B147: 11 | C147: 2033 | D147: 2364222.493 | E147: 182813586.5 | F147: 1450154.56 | G147: 914067.9325 | H147: 181363431.9
A148: 2 | B148: 12 | C148: 2033 | D148: 2364222.493 | E148: 181363431.9 | F148: 1457405.333 | G148: 906817.1597 | H148: 179906026.6
A149: 2 | B149: 1 | C149: =C148+1 -> 2034 | D149: 2364222.493 | E149: 179906026.6 | F149: 1464692.36 | G149: 899530.133 | H149: 178441334.2
A150: 2 | B150: 2 | C150: =C149 -> 2034 | D150: =IF(C150<=$C$2,IF(C150=$C$2,IF(B150<$D$3,$F$1,0),$F$1),0) -> 2364222.493 | E150: =IF(A150>0,IF(A150=1,$B$1,H149),0) -> 178441334.2 | F150: =IF(A150>0,D150-G150,0) -> 1472015.822 | G150: =IF(A150>0,E150*$C$1/12,0) -> 892206.6712 | H150: =E150-F150 -> 176969318.4
A151: 2 | B151: 3 | C151: =C150 -> 2034 | D151: 2364222.493 | E151: 176969318.4 | F151: 1479375.901 | G151: 884846.5921 | H151: 175489942.5
A152: 2 | B152: 4 | C152: 2034 | D152: 2364222.493 | E152: 175489942.5 | F152: 1486772.78 | G152: 877449.7126 | H152: 174003169.7
A153: 2 | B153: 5 | C153: 2034 | D153: 2364222.493 | E153: 174003169.7 | F153: 1494206.644 | G153: 870015.8487 | H153: 172508963.1
A154: 2 | B154: 6 | C154: 2034 | D154: 2364222.493 | E154: 172508963.1 | F154: 1501677.678 | G154: 862544.8155 | H154: 171007285.4
A155: 2 | B155: 7 | C155: 2034 | D155: 2364222.493 | E155: 171007285.4 | F155: 1509186.066 | G155: 855036.4271 | H155: 169498099.4
A156: 2 | B156: 8 | C156: 2034 | D156: 2364222.493 | E156: 169498099.4 | F156: 1516731.996 | G156: 847490.4968 | H156: 167981367.4
A157: 2 | B157: 9 | C157: 2034 | D157: 2364222.493 | E157: 167981367.4 | F157: 1524315.656 | G157: 839906.8368 | H157: 166457051.7
A158: 2 | B158: 10 | C158: 2034 | D158: 2364222.493 | E158: 166457051.7 | F158: 1531937.234 | G158: 832285.2585 | H158: 164925114.5
A159: 2 | B159: 11 | C159: 2034 | D159: 2364222.493 | E159: 164925114.5 | F159: 1539596.921 | G159: 824625.5723 | H159: 163385517.5
A160: 2 | B160: 12 | C160: 2034 | D160: 2364222.493 | E160: 163385517.5 | F160: 1547294.905 | G160: 816927.5877 | H160: 161838222.6
A161: 2 | B161: 1 | C161: =C160+1 -> 2035 | D161: 2364222.493 | E161: 161838222.6 | F161: 1555031.38 | G161: 809191.1132 | H161: 160283191.3
A162: 2 | B162: 2 | C162: =C161 -> 2035 | D162: 2364222.493 | E162: 160283191.3 | F162: 1562806.537 | G162: 801415.9563 | H162: 158720384.7
A163: 2 | B163: 3 | C163: =C162 -> 2035 | D163: 2364222.493 | E163: 158720384.7 | F163: 1570620.569 | G163: 793601.9236 | H163: 157149764.2
A164: 2 | B164: 4 | C164: 2035 | D164: 2364222.493 | E164: 157149764.2 | F164: 1578473.672 | G164: 785748.8208 | H164: 155571290.5
A165: 2 | B165: 5 | C165: 2035 | D165: 2364222.493 | E165: 155571290.5 | F165: 1586366.041 | G165: 777856.4524 | H165: 153984924.4
A166: 2 | B166: 6 | C166: 2035 | D166: 2364222.493 | E166: 153984924.4 | F166: 1594297.871 | G166: 769924.6222 | H166: 152390626.6
A167: 2 | B167: 7 | C167: 2035 | D167: 2364222.493 | E167: 152390626.6 | F167: 1602269.36 | G167: 761953.1328 | H167: 150788357.2
A168: 2 | B168: 8 | C168: 2035 | D168: 2364222.493 | E168: 150788357.2 | F168: 1610280.707 | G168: 753941.786 | H168: 149178076.5
A169: 2 | B169: 9 | C169: 2035 | D169: 2364222.493 | E169: 149178076.5 | F169: 1618332.11 | G169: 745890.3825 | H169: 147559744.4
A170: 2 | B170: 10 | C170: 2035 | D170: 2364222.493 | E170: 147559744.4 | F170: 1626423.771 | G170: 737798.722 | H170: 145933320.6
A171: 2 | B171: 11 | C171: 2035 | D171: 2364222.493 | E171: 145933320.6 | F171: 1634555.89 | G171: 729666.6031 | H171: 144298764.7
A172: 2 | B172: 12 | C172: 2035 | D172: 2364222.493 | E172: 144298764.7 | F172: 1642728.669 | G172: 721493.8237 | H172: 142656036.1
A173: 2 | B173: 1 | C173: =C172+1 -> 2036 | D173: 2364222.493 | E173: 142656036.1 | F173: 1650942.313 | G173: 713280.1803 | H173: 141005093.7
A174: 2 | B174: 2 | C174: =C173 -> 2036 | D174: 2364222.493 | E174: 141005093.7 | F174: 1659197.024 | G174: 705025.4687 | H174: 139345896.7
A175: 2 | B175: 3 | C175: =C174 -> 2036 | D175: 2364222.493 | E175: 139345896.7 | F175: 1667493.009 | G175: 696729.4836 | H175: 137678403.7
A176: 2 | B176: 4 | C176: 2036 | D176: 2364222.493 | E176: 137678403.7 | F176: 1675830.474 | G176: 688392.0186 | H176: 136002573.2
A177: 2 | B177: 5 | C177: 2036 | D177: 2364222.493 | E177: 136002573.2 | F177: 1684209.627 | G177: 680012.8662 | H177: 134318363.6
A178: 2 | B178: 6 | C178: 2036 | D178: 2364222.493 | E178: 134318363.6 | F178: 1692630.675 | G178: 671591.8181 | H178: 132625732.9
A179: 2 | B179: 7 | C179: 2036 | D179: 2364222.493 | E179: 132625732.9 | F179: 1701093.828 | G179: 663128.6647 | H179: 130924639.1
A180: 2 | B180: 8 | C180: 2036 | D180: 2364222.493 | E180: 130924639.1 | F180: 1709599.297 | G180: 654623.1956 | H180: 129215039.8
A181: 2 | B181: 9 | C181: 2036 | D181: 2364222.493 | E181: 129215039.8 | F181: 1718147.294 | G181: 646075.1991 | H181: 127496892.5
A182: 2 | B182: 10 | C182: 2036 | D182: 2364222.493 | E182: 127496892.5 | F182: 1726738.03 | G182: 637484.4626 | H182: 125770154.5
A183: 2 | B183: 11 | C183: 2036 | D183: 2364222.493 | E183: 125770154.5 | F183: 1735371.721 | G183: 628850.7724 | H183: 124034782.8
A184: 2 | B184: 12 | C184: 2036 | D184: 2364222.493 | E184: 124034782.8 | F184: 1744048.579 | G184: 620173.9138 | H184: 122290734.2
A185: 2 | B185: 1 | C185: =C184+1 -> 2037 | D185: 2364222.493 | E185: 122290734.2 | F185: 1752768.822 | G185: 611453.6709 | H185: 120537965.4
A186: 2 | B186: 2 | C186: =C185 -> 2037 | D186: 2364222.493 | E186: 120537965.4 | F186: 1761532.666 | G186: 602689.8268 | H186: 118776432.7
A187: 2 | B187: 3 | C187: =C186 -> 2037 | D187: 2364222.493 | E187: 118776432.7 | F187: 1770340.329 | G187: 593882.1635 | H187: 117006092.4
A188: 2 | B188: 4 | C188: 2037 | D188: 2364222.493 | E188: 117006092.4 | F188: 1779192.031 | G188: 585030.4619 | H188: 115226900.3
A189: 2 | B189: 5 | C189: 2037 | D189: 2364222.493 | E189: 115226900.3 | F189: 1788087.991 | G189: 576134.5017 | H189: 113438812.3
A190: 2 | B190: 6 | C190: 2037 | D190: 2364222.493 | E190: 113438812.3 | F190: 1797028.431 | G190: 567194.0617 | H190: 111641783.9
A191: 2 | B191: 7 | C191: 2037 | D191: 2364222.493 | E191: 111641783.9 | F191: 1806013.573 | G191: 558208.9196 | H191: 109835770.3
A192: 2 | B192: 8 | C192: 2037 | D192: 2364222.493 | E192: 109835770.3 | F192: 1815043.641 | G192: 549178.8517 | H192: 108020726.7
A193: 2 | B193: 9 | C193: 2037 | D193: 2364222.493 | E193: 108020726.7 | F193: 1824118.859 | G193: 540103.6335 | H193: 106196607.8
A194: 2 | B194: 10 | C194: 2037 | D194: 2364222.493 | E194: 106196607.8 | F194: 1833239.454 | G194: 530983.0392 | H194: 104363368.4
A195: 2 | B195: 11 | C195: 2037 | D195: 2364222.493 | E195: 104363368.4 | F195: 1842405.651 | G195: 521816.842 | H195: 102520962.7
A196: 2 | B196: 12 | C196: 2037 | D196: 2364222.493 | E196: 102520962.7 | F196: 1851617.679 | G196: 512604.8137 | H196: 100669345.1
A197: 2 | B197: 1 | C197: =C196+1 -> 2038 | D197: 2364222.493 | E197: 100669345.1 | F197: 1860875.768 | G197: 503346.7253 | H197: 98808469.29
A198: 2 | B198: 2 | C198: =C197 -> 2038 | D198: 2364222.493 | E198: 98808469.29 | F198: 1870180.147 | G198: 494042.3465 | H198: 96938289.15
A199: 2 | B199: 3 | C199: =C198 -> 2038 | D199: 2364222.493 | E199: 96938289.15 | F199: 1879531.047 | G199: 484691.4457 | H199: 95058758.1
A200: 2 | B200: 4 | C200: 2038 | D200: 2364222.493 | E200: 95058758.1 | F200: 1888928.702 | G200: 475293.7905 | H200: 93169829.4
... 236 more rows
